Body Name,Body,Service Division Label,Service Division Code,Organisational Unit,Expenditure Category,Expenditure Code,CIPFA detailed expediture type,CIPFA detailed expediture code,Narrative,Date,Transaction number,Net Amount,Capital and Revenue,Supplier Name,Supplier ID
Chorley Borough Council,http://statistics.data.gov.uk/id/local-authority/30UE,Corporate Management,1008,Health Environment & Neighbourhoods,Taxi Testing & Vehicle Safety Report,40234,Services,5027,MOT,11/11/2015,107312,219.40,Revenue,A & A Auto Care Limited,19361
Chorley Borough Council,http://statistics.data.gov.uk/id/local-authority/30UE,Corporate Management,1008,Health Environment & Neighbourhoods,Taxi Testing & Vehicle Safety Report,40234,Services,5027,taxi test,11/11/2015,107312,41.00,Revenue,A & A Auto Care Limited,19361
Chorley Borough Council,http://statistics.data.gov.uk/id/local-authority/30UE,Democratic Represent and  Mgnt,1007,Streetscene & Leisure Contracts,Miscellaneous Expenses,40200,Miscellaneous Expenses,5034,Presents for Astley Christmas Event,19/11/2015,107590,"3,640.00",Revenue,Abbey Distributors,67669
Chorley Borough Council,http://statistics.data.gov.uk/id/local-authority/30UE,Capital,Capital,Housing,Grants,3002,Capital Expenditure,Capital,ADDRESS REDACTED,27/11/2015,107912,"2,663.00",Capital,Access-Able (UK) Limited,73010
Chorley Borough Council,http://statistics.data.gov.uk/id/local-authority/30UE,Capital,Capital,Housing,Grants,3002,Capital Expenditure,Capital,ADDRESS REDACTED,11/11/2015,107499,"3,260.00",Capital,Accessible Bathroom Solutions Ltd,58149
Chorley Borough Council,http://statistics.data.gov.uk/id/local-authority/30UE,Central Support Services,1009,Streetscene & Leisure Contracts,Other Fees,40212,Miscellaneous Expenses,5034,Provision of free swimming for 16 year olds and under from 27 July to 4 Sept 2015 on times and dates agreed.,04/11/2015,107112,"7,500.00",Revenue,Active Nation UK Ltd,17144
Chorley Borough Council,http://statistics.data.gov.uk/id/local-authority/30UE,Democratic Represent and  Mgnt,1007,Streetscene & Leisure Contracts,External Contractor - Trust or Charity,50008,Private Contractors,5042,Active Nation Monthly Management Fee For the Period April 2015 - March 2016. Monthly Fee to be invoiced ,06/11/2015,107272,"31,211.54",Revenue,Active Nation UK Ltd,17144
Chorley Borough Council,http://statistics.data.gov.uk/id/local-authority/30UE,Unapportionable Central OHeads,1009,Governance,Burglar Alarms & Security Systems,20075,Fixtures and Fittings,5010,Maintenance of the Access Control system Town Hall - Charge for the period 28/11/2015 - 27/02/2016 based annual charge,25/11/2015,107401,680.02,Revenue,ADT Fire & Security,16645
Chorley Borough Council,http://statistics.data.gov.uk/id/local-authority/30UE,Unapportionable Central OHeads,1009,Governance,Burglar Alarms & Security Systems,20075,Fixtures and Fittings,5010,"Maintenance of the CCTV system at Union St for the period 22/11/2015 - 21/11/2016 Invoice number 30895102-10",25/11/2015,107403,287.15,Revenue,ADT Fire & Security,16645
Chorley Borough Council,http://statistics.data.gov.uk/id/local-authority/30UE,Unapportionable Central OHeads,1009,Governance,Burglar Alarms & Security Systems,20075,Fixtures and Fittings,5010,Work to Access system at the Union St civic offices,25/11/2015,107839,282.00,Revenue,ADT Fire & Security,16645
Chorley Borough Council,http://statistics.data.gov.uk/id/local-authority/30UE,Business Support,1095,Governance,Asset Maintenance Fund,20012,Repairs Maintenance & Alts,5005,Air Conditioning Carry out works as per your quotation Ref: P-AC/15/10/149,30/11/2015,107892,"6,500.00",Revenue,Allcool (NW) Limited,72656
Chorley Borough Council,http://statistics.data.gov.uk/id/local-authority/30UE,Democratic Represent and  Mgnt,1007,Shared Service Arrangement,Car Leasing Payment,14100,Direct Employee Expenses,5001,Car Lease,27/11/2015,107778,"3,607.73",Revenue,Alphabet (Uk) Fleet Management Ltd,16651
Chorley Borough Council,http://statistics.data.gov.uk/id/local-authority/30UE,Democratic Represent and  Mgnt,1007,Shared Service Arrangement,Car Leasing Payment,14100,Direct Employee Expenses,5001,Car Lease,27/11/2015,107778,305.20,Revenue,Alphabet (Uk) Fleet Management Ltd,16651
Chorley Borough Council,http://statistics.data.gov.uk/id/local-authority/30UE,Control Accounts,Control,Shared Service Arrangement,Manual Control Account,1,Balance Sheet,Balance,Car Lease,27/11/2015,107778,-305.20,Revenue,Alphabet (Uk) Fleet Management Ltd,16651
Chorley Borough Council,http://statistics.data.gov.uk/id/local-authority/30UE,Unapportionable Central OHeads,1009,Governance,Cleaning Materials,40019,"Equipment, Furniture & Materia",5023,provision for cleaning materials,04/11/2015,107230,878.22,Revenue,Amtoll Ltd,21738
Chorley Borough Council,http://statistics.data.gov.uk/id/local-authority/30UE,Central Support Services,1009,"Customer, ICT & Transactional",Computer Equipment-Maintenance,40105,Communication and Computing,5028,Managed infrastructure contract - November 2015,19/11/2015,107539,"2,000.00",Revenue,ANS Group,22502
Chorley Borough Council,http://statistics.data.gov.uk/id/local-authority/30UE,Capital,Capital,Streetscene & Leisure Contracts,Main Contractor,3007,Capital Expenditure,Capital,"Carr Brook timber bridges, benches and trim trail equipment repair and painting and cutting back of grass and vegetation ",04/11/2015,106942,"3,780.00",Capital,AP Broom Landscapes,67257
Chorley Borough Council,http://statistics.data.gov.uk/id/local-authority/30UE,Capital,Capital,Streetscene & Leisure Contracts,Main Contractor,3007,Capital Expenditure,Capital,"Continued painting of timber handrails, kissing gates and bridges and replacement of rotten timber along Carr Brook",19/11/2015,107474,"2,640.00",Capital,AP Broom Landscapes,67257
Chorley Borough Council,http://statistics.data.gov.uk/id/local-authority/30UE,Service Management & Support,1009,Streetscene & Leisure Contracts,External Contractor,40198,Miscellaneous Expenses,5034,Manufacture supply and fit ends at bus shelter at Elephant and Castle pub Adlington as requested,19/11/2015,107612,450.00,Revenue,Ark Welding Ltd,18154
Chorley Borough Council,http://statistics.data.gov.uk/id/local-authority/30UE,Unapportionable Central OHeads,1009,Shared Service Arrangement,Car Leasing Payment,14100,Direct Employee Expenses,5001,"Vehicle - Citroen Grand C4 Picasso 1.6 Blue HDi Exclusive+ 5dr Estate 6sp Colour - Metallic Ruby RedTrim - Ondulice",19/11/2015,107460,"3,353.04",Revenue,Arnold Clark Finance Ltd,20685
Chorley Borough Council,http://statistics.data.gov.uk/id/local-authority/30UE,Unapportionable Central OHeads,1009,Shared Service Arrangement,Legal Fees,40171,Miscellaneous Expenses,5034,29/07/15 - HM Courts - Court Fees,23/11/2015,106586,72.00,Revenue,Barclaycard Commercial,59848
Chorley Borough Council,http://statistics.data.gov.uk/id/local-authority/30UE,Unapportionable Central OHeads,1009,Shared Service Arrangement,Legal Fees,40171,Miscellaneous Expenses,5034,28/08/15 - HM Courts - Court Fees,23/11/2015,106586,105.00,Revenue,Barclaycard Commercial,59848
Chorley Borough Council,http://statistics.data.gov.uk/id/local-authority/30UE,Corporate Management,1008,Shared Service Arrangement,Other Licence Fees,40231,Miscellaneous Expenses,5034,05/08/15 - EA Hazardous Waste Dom - Licence,23/11/2015,106586,18.00,Revenue,Barclaycard Commercial,59848
Chorley Borough Council,http://statistics.data.gov.uk/id/local-authority/30UE,Central Support Services,1009,Shared Service Arrangement,General Subscriptions,40146,Grants and Subscriptions,5031,30/07/15 - www.ico.gov.uk - Data protection licence+J25,23/11/2015,106586,500.00,Revenue,Barclaycard Commercial,59848
Chorley Borough Council,http://statistics.data.gov.uk/id/local-authority/30UE,Service Management & Support,1009,Shared Service Arrangement,Supplies-Grounds Maintenance,40025,"Equipment, Furniture & Materia",5023,01/08/15 - Premier Inn - Accom Malthouse Farm,23/11/2015,106586,90.75,Revenue,Barclaycard Commercial,59848
Chorley Borough Council,http://statistics.data.gov.uk/id/local-authority/30UE,Central Support Services,1009,Shared Service Arrangement,Computer Equipment-Purchase,40098,Communication and Computing,5028,04/08/15 - Paypal Laiwenxuani - PU leather wallet case for mobile phone,23/11/2015,106586,1.99,Revenue,Barclaycard Commercial,59848
Chorley Borough Council,http://statistics.data.gov.uk/id/local-authority/30UE,Corporate Management,1008,Shared Service Arrangement,Training Course Fees,17010,Indirect Employee Expenses,5002,12/08/15 - CIEH - HHSRS Enforcement,23/11/2015,106586,175.00,Revenue,Barclaycard Commercial,59848
Chorley Borough Council,http://statistics.data.gov.uk/id/local-authority/30UE,Corporate Management,1008,Shared Service Arrangement,Training Course Fees,17010,Indirect Employee Expenses,5002,12/08/15 - CIEH - Understanding and applying HHSRS,23/11/2015,106586,350.00,Revenue,Barclaycard Commercial,59848
Chorley Borough Council,http://statistics.data.gov.uk/id/local-authority/30UE,Central Support Services,1009,Shared Service Arrangement,Computer Equipment-Purchase,40098,Communication and Computing,5028,18/08/15 - Amazon Svcs Europe - Digiflex male to female adaptor connector,23/11/2015,106586,3.98,Revenue,Barclaycard Commercial,59848
Chorley Borough Council,http://statistics.data.gov.uk/id/local-authority/30UE,Central Support Services,1009,Shared Service Arrangement,Computer Equipment-Purchase,40098,Communication and Computing,5028,18/08/15 - Amazon UK Marketplace - Audio and video leads,23/11/2015,106586,6.99,Revenue,Barclaycard Commercial,59848
Chorley Borough Council,http://statistics.data.gov.uk/id/local-authority/30UE,Corporate Management,1008,Shared Service Arrangement,Staff Rail Fares,30032,Public Transport,5019,20/08/15 - Columbus Trainline - Preston to London 17/09/15  Insurance,23/11/2015,106586,1.00,Revenue,Barclaycard Commercial,59848
Chorley Borough Council,http://statistics.data.gov.uk/id/local-authority/30UE,Corporate Management,1008,Shared Service Arrangement,Staff Rail Fares,30032,Public Transport,5019,20/08/15 - Trainline.com - Preston to London 17/09/15  Cancellation Protection,23/11/2015,106586,4.00,Revenue,Barclaycard Commercial,59848
Chorley Borough Council,http://statistics.data.gov.uk/id/local-authority/30UE,Corporate Management,1008,Shared Service Arrangement,Staff Rail Fares,30032,Public Transport,5019,20/08/15 - Trainline.com - Preston to London 17/09/15,23/11/2015,106586,261.63,Revenue,Barclaycard Commercial,59848
Chorley Borough Council,http://statistics.data.gov.uk/id/local-authority/30UE,Central Support Services,1009,Shared Service Arrangement,Computer Equipment-Purchase,40098,Communication and Computing,5028,18/08/15 - Amazon UK Marketplace - Audio and video leads,23/11/2015,106586,38.24,Revenue,Barclaycard Commercial,59848
Chorley Borough Council,http://statistics.data.gov.uk/id/local-authority/30UE,Development Control,1091,Shared Service Arrangement,Training Course Fees,17010,Indirect Employee Expenses,5002,21/08/15 - WP Haymarket Publishing - Planning for Housing course ,23/11/2015,106586,329.00,Revenue,Barclaycard Commercial,59848
Chorley Borough Council,http://statistics.data.gov.uk/id/local-authority/30UE,Unapportionable Central OHeads,1009,Shared Service Arrangement,Legal Fees,40171,Miscellaneous Expenses,5034,17/08/15 - HM Courts - Court Fees,23/11/2015,106586,"1,944.00",Revenue,Barclaycard Commercial,59848
Chorley Borough Council,http://statistics.data.gov.uk/id/local-authority/30UE,Unapportionable Central OHeads,1009,Shared Service Arrangement,HR Recruitment - Advertising,15300,Indirect Employee Expenses,5002,28/07/15 - Totaljobs Group Ltd - Job Adverts,23/11/2015,106586,455.00,Revenue,Barclaycard Commercial,59848
Chorley Borough Council,http://statistics.data.gov.uk/id/local-authority/30UE,Corporate Management,1008,Shared Service Arrangement,Miscellaneous Expenses,40200,Miscellaneous Expenses,5034,17/08/15 - Marshalls Florist - Flowers,23/11/2015,106586,41.67,Revenue,Barclaycard Commercial,59848
Chorley Borough Council,http://statistics.data.gov.uk/id/local-authority/30UE,Service Management & Support,1009,Shared Service Arrangement,Vehicle Maintenance,30045,Direct Transport Costs,5016,06/08/15 - Post office counter - Road Tax DK07 LDE,23/11/2015,106586,202.50,Revenue,Barclaycard Commercial,59848
Chorley Borough Council,http://statistics.data.gov.uk/id/local-authority/30UE,Service Management & Support,1009,Shared Service Arrangement,Vehicle Maintenance,30045,Direct Transport Costs,5016,07/08/15 - www.dvla.gov.uk - Road tax DK55 EEF,23/11/2015,106586,167.50,Revenue,Barclaycard Commercial,59848
Chorley Borough Council,http://statistics.data.gov.uk/id/local-authority/30UE,Service Management & Support,1009,Shared Service Arrangement,Vehicle Maintenance,30045,Direct Transport Costs,5016,07/08/15 - www.dvla.gov.uk - Road tax PN02 HRL,23/11/2015,106586,202.50,Revenue,Barclaycard Commercial,59848
Chorley Borough Council,http://statistics.data.gov.uk/id/local-authority/30UE,Service Management & Support,1009,Shared Service Arrangement,Vehicle Maintenance,30045,Direct Transport Costs,5016,07/08/15 - www.dvla.gov.uk - Road tax KX55 CVG,23/11/2015,106586,227.50,Revenue,Barclaycard Commercial,59848
Chorley Borough Council,http://statistics.data.gov.uk/id/local-authority/30UE,Corporate Management,1008,Shared Service Arrangement,Vehicle Maintenance,30045,Direct Transport Costs,5016,07/08/15 - www.dvla.gov.uk - Road tax T481 MNB,23/11/2015,106586,232.50,Revenue,Barclaycard Commercial,59848
Chorley Borough Council,http://statistics.data.gov.uk/id/local-authority/30UE,Service Management & Support,1009,Shared Service Arrangement,Miscellaneous Expenses,40200,Miscellaneous Expenses,5034,30/07/15 - Facebook -ads for Chorley Flower Show,23/11/2015,106586,100.17,Revenue,Barclaycard Commercial,59848
Chorley Borough Council,http://statistics.data.gov.uk/id/local-authority/30UE,Business Support,1095,Shared Service Arrangement,Promotional Expenses,40159,Miscellaneous Expenses,5034,30/07/15 - Facebook -ads for Market Walk,23/11/2015,106586,100.00,Revenue,Barclaycard Commercial,59848
Chorley Borough Council,http://statistics.data.gov.uk/id/local-authority/30UE,Unapportionable Central OHeads,1009,Shared Service Arrangement,Publicity - Advertising,40157,Miscellaneous Expenses,5034,31/07/15 - Facebook -ads for Astley Hall,23/11/2015,106586,80.00,Revenue,Barclaycard Commercial,59848
Chorley Borough Council,http://statistics.data.gov.uk/id/local-authority/30UE,Corporate Management,1008,Shared Service Arrangement,Publicity - Advertising,40157,Miscellaneous Expenses,5034,31/07/15 - Facebook -ads for Market Walk,23/11/2015,106586,16.61,Revenue,Barclaycard Commercial,59848
Chorley Borough Council,http://statistics.data.gov.uk/id/local-authority/30UE,Unapportionable Central OHeads,1009,Shared Service Arrangement,Exhibitions & Special Events,40158,Miscellaneous Expenses,5034,04/08/15 - Facebook - temp event notice Theatre in the Park Robin Hood,23/11/2015,106586,21.00,Revenue,Barclaycard Commercial,59848
Chorley Borough Council,http://statistics.data.gov.uk/id/local-authority/30UE,Unapportionable Central OHeads,1009,Shared Service Arrangement,Exhibitions & Special Events,40158,Miscellaneous Expenses,5034,04/08/15 - Facebook - temp event notice Theatre in the Park Robin Hood,23/11/2015,106586,21.00,Revenue,Barclaycard Commercial,59848
Chorley Borough Council,http://statistics.data.gov.uk/id/local-authority/30UE,Unapportionable Central OHeads,1009,Shared Service Arrangement,Exhibitions & Special Events,40158,Miscellaneous Expenses,5034,05/08/15 - Facebook - temp event notice Theatre in the Park Mr Stink,23/11/2015,106586,21.00,Revenue,Barclaycard Commercial,59848
Chorley Borough Council,http://statistics.data.gov.uk/id/local-authority/30UE,Corporate Management,1008,Shared Service Arrangement,Bank Charges,40151,Miscellaneous Expenses,5034,,23/11/2015,106834,504.76,Revenue,Barclaycard Merchant Services,61601
Chorley Borough Council,http://statistics.data.gov.uk/id/local-authority/30UE,Corporate Management,1008,Shared Service Arrangement,Bank Charges,40151,Miscellaneous Expenses,5034,,23/11/2015,106835,470.19,Revenue,Barclaycard Merchant Services,61601
Chorley Borough Council,http://statistics.data.gov.uk/id/local-authority/30UE,Corporate Management,1008,Shared Service Arrangement,Bank Charges,40151,Miscellaneous Expenses,5034,,23/11/2015,107626,463.28,Revenue,Barclaycard Merchant Services,61601
Chorley Borough Council,http://statistics.data.gov.uk/id/local-authority/30UE,Corporate Management,1008,Shared Service Arrangement,Bank Charges,40151,Miscellaneous Expenses,5034,,23/11/2015,107627,515.63,Revenue,Barclaycard Merchant Services,61601
Chorley Borough Council,http://statistics.data.gov.uk/id/local-authority/30UE,Central Support Services,1009,Health Environment & Neighbourhoods,Tools & Equipment - Maintenance,40005,"Equipment, Furniture & Materia",5023,Maintenance of CCTV,04/11/2015,106477,377.92,Revenue,Baydale Control Systems,21154
Chorley Borough Council,http://statistics.data.gov.uk/id/local-authority/30UE,Unapportionable Central OHeads,1009,"Customer, ICT & Transactional",Consultants` Fees,40077,Services,5027,"Support as agreed with Customer, Transactional and ICT services",11/11/2015,107457,975.00,Revenue,REDACTED PERSONAL DATA,22238
Chorley Borough Council,http://statistics.data.gov.uk/id/local-authority/30UE,Democratic Represent and  Mgnt,1007,Streetscene & Leisure Contracts,Exhibitions & Special Events,40158,Miscellaneous Expenses,5034,Filming for the Sacrifice Exhibition Sunday 20th September and Monday 21st September,19/11/2015,107113,"1,500.00",Revenue,Biscuit Media Ltd,71751
Chorley Borough Council,http://statistics.data.gov.uk/id/local-authority/30UE,Democratic Represent and  Mgnt,1007,Streetscene & Leisure Contracts,Exhibitions & Special Events,40158,Miscellaneous Expenses,5034,,19/11/2015,107113,168.01,Revenue,Biscuit Media Ltd,71751
Chorley Borough Council,http://statistics.data.gov.uk/id/local-authority/30UE,Democratic Represent and  Mgnt,1007,Streetscene & Leisure Contracts,Exhibitions & Special Events,40158,Miscellaneous Expenses,5034,Filming and associated expenses on behalf of the Sacrifice project. Monday 16th & Tuesday 17th Nov.,27/11/2015,107853,"1,500.00",Revenue,Biscuit Media Ltd,71751
Chorley Borough Council,http://statistics.data.gov.uk/id/local-authority/30UE,Democratic Represent and  Mgnt,1007,Streetscene & Leisure Contracts,Exhibitions & Special Events,40158,Miscellaneous Expenses,5034,Expenses,27/11/2015,107853,225.09,Revenue,Biscuit Media Ltd,71751
Chorley Borough Council,http://statistics.data.gov.uk/id/local-authority/30UE,Unapportionable Central OHeads,1009,Shared Service Arrangement,Miscellaneous Expenses,40200,Miscellaneous Expenses,5034,Financial Contribution - Cosy Homes Scheme,04/11/2015,107260,"4,000.00",Revenue,Blackpool Borough Council,16518
Chorley Borough Council,http://statistics.data.gov.uk/id/local-authority/30UE,Service Management & Support,1009,Streetscene & Leisure Contracts,External Contractor,40198,Miscellaneous Expenses,5034,Grant,06/11/2015,107208,750.00,Revenue,Bretherton Parish Council,17108
Chorley Borough Council,http://statistics.data.gov.uk/id/local-authority/30UE,Corporate Management,1008,Policy & Performance,Exhibitions & Special Events,40158,Miscellaneous Expenses,5034,Balloon modelling and Punch and Judy in Market Walk for October half term,04/11/2015,107323,260.00,Revenue,Brian Gore,18370
Chorley Borough Council,http://statistics.data.gov.uk/id/local-authority/30UE,Central Support Services,1009,"Customer, ICT & Transactional",Telephones - Calls,40084,Communication and Computing,5028,usage charges,13/11/2015,107340,171.37,Revenue,British Telecommunications Plc,17131
Chorley Borough Council,http://statistics.data.gov.uk/id/local-authority/30UE,Central Support Services,1009,"Customer, ICT & Transactional",Telephones - Other,40085,Communication and Computing,5028,one off charges,13/11/2015,107340,24.00,Revenue,British Telecommunications Plc,17131
Chorley Borough Council,http://statistics.data.gov.uk/id/local-authority/30UE,Central Support Services,1009,"Customer, ICT & Transactional",Telephones - Rentals,40083,Communication and Computing,5028,recurring,13/11/2015,107340,"3,524.20",Revenue,British Telecommunications Plc,17131
Chorley Borough Council,http://statistics.data.gov.uk/id/local-authority/30UE,Capital,Capital,Streetscene & Leisure Contracts,Equipment,3014,Capital Expenditure,Capital,"3x BX47 4001A-RT Hopetoun Stainless Steel Benches, grade 304 stainless steel, 1800mm length, root fixed, matt satin ",27/11/2015,107326,"1,722.00",Capital,Broxap Ltd,16718
Chorley Borough Council,http://statistics.data.gov.uk/id/local-authority/30UE,Central Support Services,1009,"Customer, ICT & Transactional",Computer Equipment-Purchase,40098,Communication and Computing,5028,Samsung UE75JU6400 75`` Ultra HD LED Smart TV,19/11/2015,107581,"4,599.52",Revenue,BT Business Direct Ltd,63990
Chorley Borough Council,http://statistics.data.gov.uk/id/local-authority/30UE,Democratic Represent and  Mgnt,1007,Governance,Grants To Other Organisations,40127,Grants and Subscriptions,5031,grant,19/11/2015,107501,250.00,Revenue,Buckshaw Youth Association,22310
Chorley Borough Council,http://statistics.data.gov.uk/id/local-authority/30UE,Service Management & Support,1009,Streetscene & Leisure Contracts,Supplies-Grounds Maintenance,40025,"Equipment, Furniture & Materia",5023,Highway C2 Fast Setting Mortar 25Kg Bag Product code= 02110551,04/11/2015,106984,412.00,Revenue,C & W BERRY LIMITED,18180
Chorley Borough Council,http://statistics.data.gov.uk/id/local-authority/30UE,Service Management & Support,1009,Streetscene & Leisure Contracts,External Contractor,40198,Miscellaneous Expenses,5034,Carryout monthly emptying of interceptor tank and gullies at Bengal St depot at price agreed,27/11/2015,107404,300.00,Revenue,C J Lyon,16579
Chorley Borough Council,http://statistics.data.gov.uk/id/local-authority/30UE,Service Management & Support,1009,Streetscene & Leisure Contracts,Vehicle Maintenance,30045,Direct Transport Costs,5016,Carryout pre MOT inspection and C service on DK56JWL and take for annual test as required,04/11/2015,107221,"1,118.50",Revenue,C P Davidson & Sons Ltd,21093
Chorley Borough Council,http://statistics.data.gov.uk/id/local-authority/30UE,Service Management & Support,1009,Streetscene & Leisure Contracts,Vehicle Maintenance,30045,Direct Transport Costs,5016,,04/11/2015,107221,93.00,Revenue,C P Davidson & Sons Ltd,21093
Chorley Borough Council,http://statistics.data.gov.uk/id/local-authority/30UE,Service Management & Support,1009,Streetscene & Leisure Contracts,Vehicle Maintenance,30045,Direct Transport Costs,5016,Carryout pre Mot inspection and C service on PN02HRL and take for annual test as required,04/11/2015,107240,"1,047.80",Revenue,C P Davidson & Sons Ltd,21093
Chorley Borough Council,http://statistics.data.gov.uk/id/local-authority/30UE,Service Management & Support,1009,Streetscene & Leisure Contracts,Vehicle Maintenance,30045,Direct Transport Costs,5016,MOT,04/11/2015,107240,93.00,Revenue,C P Davidson & Sons Ltd,21093
Chorley Borough Council,http://statistics.data.gov.uk/id/local-authority/30UE,Service Management & Support,1009,Streetscene & Leisure Contracts,Vehicle Maintenance,30045,Direct Transport Costs,5016,remove cage and bin lift as requested from DK57KVT supply and fit new tail board and paint  as on invoice number W48700,19/11/2015,107595,"1,014.24",Revenue,C P Davidson & Sons Ltd,21093
Chorley Borough Council,http://statistics.data.gov.uk/id/local-authority/30UE,Economic Development,1096,Economic Development,Miscellaneous Expenses,40200,Miscellaneous Expenses,5034,Buffet for 120 Choose Chorley Network Wed 25th Nov 2015.  6 per head = 720 plus vat,27/11/2015,107855,360.00,Revenue,Camerons Restaurant Ltd,53731
Chorley Borough Council,http://statistics.data.gov.uk/id/local-authority/30UE,Unapportionable Central OHeads,1009,Shared Service Arrangement,Employee Related Insurance,18003,Indirect Employee Expenses,5002,,11/11/2015,107288,"1,000.00",Revenue,Canada Life,22284
Chorley Borough Council,http://statistics.data.gov.uk/id/local-authority/30UE,Unapportionable Central OHeads,1009,Governance,Refuse Collection,20037,Cleaning and Domestic Supplies,5012,Oct to Dec 15,19/11/2015,106715,"1,232.79",Revenue,Cannon Hygiene Limited,18158
Chorley Borough Council,http://statistics.data.gov.uk/id/local-authority/30UE,Capital,Capital,Streetscene & Leisure Contracts,Main Contractor,3007,Capital Expenditure,Capital,Design and build of free form concrete skate park at Ranglett`s Recreation Ground.,11/11/2015,107249,"36,929.35",Capital,Canvas Spaces Ltd,72477
Chorley Borough Council,http://statistics.data.gov.uk/id/local-authority/30UE,Control Accounts,Control,Shared Service Arrangement,Manual Control Account,1,Balance Sheet,Balance,CIS TAX deducted inerro,27/11/2015,107823,"5,385.87",Revenue,Canvas Spaces Ltd,72477
Chorley Borough Council,http://statistics.data.gov.uk/id/local-authority/30UE,Parking Services,1066,Governance,External Contractors,50008,Private Contractors,5042,Provision of Notice Processing services as agreed in Lancashire contract. 320 PCNs per month @ 2.90 per ticket. ,25/11/2015,107378,838.10,Revenue,Chipside Ltd,22063
Chorley Borough Council,http://statistics.data.gov.uk/id/local-authority/30UE,Parking Services,1066,Governance,External Contractors,50008,Private Contractors,5042,Chipside Annual Capital Cost Split for period of 06/09/2014 - 05/09/2015 for issue of 3457 PCNs.,11/11/2015,107379,"2,017.59",Revenue,Chipside Ltd,22063
Chorley Borough Council,http://statistics.data.gov.uk/id/local-authority/30UE,Corporate Management,1008,Health Environment & Neighbourhoods,Taxi Testing & Vehicle Safety Report,40234,Services,5027,mot,11/11/2015,107430,658.20,Revenue,Chorley Autocare Ltd,17110
Chorley Borough Council,http://statistics.data.gov.uk/id/local-authority/30UE,Corporate Management,1008,Health Environment & Neighbourhoods,Taxi Testing & Vehicle Safety Report,40234,Services,5027,taxi test,11/11/2015,107430,102.60,Revenue,Chorley Autocare Ltd,17110
Chorley Borough Council,http://statistics.data.gov.uk/id/local-authority/30UE,Democratic Represent and  Mgnt,1007,Governance,Processional Routes,40177,Miscellaneous Expenses,5034,Fee for the band to play in the Remembrance Sunday procession in Chorley town centre on Sunday 8th November 2015.,11/11/2015,107484,400.00,Revenue,Chorley Pipe Band,21576
Chorley Borough Council,http://statistics.data.gov.uk/id/local-authority/30UE,Service Management & Support,1009,Streetscene & Leisure Contracts,Vehicle Maintenance,30045,Direct Transport Costs,5016,Supply and fit 6 x tyres on EU63YGT as required,11/11/2015,107374,339.00,Revenue,Chorley Tyres,53719
Chorley Borough Council,http://statistics.data.gov.uk/id/local-authority/30UE,Democratic Represent and  Mgnt,1007,Governance,Grants To Other Organisations,40127,Grants and Subscriptions,5031,grant,11/11/2015,107365,250.00,Revenue,Chorley Unitarian Chapel,16625
Chorley Borough Council,http://statistics.data.gov.uk/id/local-authority/30UE,Unapportionable Central OHeads,1009,Governance,Asset Maintenance Fund,20012,Repairs Maintenance & Alts,5005,4 x roller blinds - Splash Oyster for Town Hall as per Email dated 26/10/15.,25/11/2015,107722,560.00,Revenue,Chorley Window Blinds,54011
Chorley Borough Council,http://statistics.data.gov.uk/id/local-authority/30UE,Community Development,1097,Policy & Performance,Core Funding Grants,40133,Grants and Subscriptions,5031,2nd payment 2015/16 for delivery of a service to support vulnerable adults,11/11/2015,107384,"7,497.75",Revenue,Chorley Womens Centre,17036
Chorley Borough Council,http://statistics.data.gov.uk/id/local-authority/30UE,Unapportionable Central OHeads,1009,Governance,Planned Maintenance,20006,Repairs Maintenance & Alts,5005,PPM blanket order until September 2015.,06/11/2015,107204,"1,504.38",Revenue,Chubb Electronic Sec Sys Ltd,16228
Chorley Borough Council,http://statistics.data.gov.uk/id/local-authority/30UE,Unapportionable Central OHeads,1009,Shared Service Arrangement,Training Course Fees,17010,Indirect Employee Expenses,5002,Intelligent Scanning Training - One day course at Civica Leeds Offices 10th Nov 2015,19/11/2015,107659,495.00,Revenue,Civica UK Limited,17463
Chorley Borough Council,http://statistics.data.gov.uk/id/local-authority/30UE,Unapportionable Central OHeads,1009,Shared Service Arrangement,Consultants` Fees,40077,Services,5027,"Consultancy to set up the GRN retry process in the Creditors System, both SRBC and CBC Councils ( Companys ) ",27/11/2015,107832,"1,200.00",Revenue,Civica UK Limited,17463
Chorley Borough Council,http://statistics.data.gov.uk/id/local-authority/30UE,Unapportionable Central OHeads,1009,Governance,General Repairs - Reactive,20004,Repairs Maintenance & Alts,5005,Blanket order for REACTIVE works from 1st October 2015.,19/11/2015,107330,362.50,Revenue,Classic Lifts Limited,20897
Chorley Borough Council,http://statistics.data.gov.uk/id/local-authority/30UE,Unapportionable Central OHeads,1009,Governance,General Repairs - Reactive,20004,Repairs Maintenance & Alts,5005,Blanket order for REACTIVE works from 1st October 2015.,19/11/2015,107331,"1,454.55",Revenue,Classic Lifts Limited,20897
Chorley Borough Council,http://statistics.data.gov.uk/id/local-authority/30UE,Central Support Services,1009,Health Environment & Neighbourhoods,Training Course Fees,17010,Indirect Employee Expenses,5002,Delivery of Safeguarding and Protecting Children (3hrs) plus 16 resources,27/11/2015,107848,401.84,Revenue,Coachwise Ltd,21114
Chorley Borough Council,http://statistics.data.gov.uk/id/local-authority/30UE,Central Support Services,1009,Health Environment & Neighbourhoods,Training Course Fees,17010,Indirect Employee Expenses,5002,,27/11/2015,107848,10.83,Revenue,Coachwise Ltd,21114
Chorley Borough Council,http://statistics.data.gov.uk/id/local-authority/30UE,Business Support,1095,Economic Development,Miscellaneous Expenses,40200,Miscellaneous Expenses,5034,SIB,11/11/2015,107504,250.00,Revenue,NAME REDACTED,72657
Chorley Borough Council,http://statistics.data.gov.uk/id/local-authority/30UE,Capital,Capital,Streetscene & Leisure Contracts,Equipment,3014,Capital Expenditure,Capital,40 litre Inner caddy to fit 240 litre wheeled bin. Colour black,27/11/2015,107847,"7,182.00",Capital,Coral Products PLC,22426
Chorley Borough Council,http://statistics.data.gov.uk/id/local-authority/30UE,Capital,Capital,Streetscene & Leisure Contracts,Equipment,3014,Capital Expenditure,Capital,"55 litre recycling boxes. Colour : Green,  printed with Chorley design in white",27/11/2015,107847,"5,355.00",Capital,Coral Products PLC,22426
Chorley Borough Council,http://statistics.data.gov.uk/id/local-authority/30UE,Democratic Represent and  Mgnt,1007,Streetscene & Leisure Contracts,General Repairs - Reactive,20004,Repairs Maintenance & Alts,5005,Works required as per quotation C 3993. Upgrade of emergency lighting at Brinscall Baths,06/11/2015,107298,"5,660.60",Revenue,Corlett Electrical Eng Co Ltd,16271
Chorley Borough Council,http://statistics.data.gov.uk/id/local-authority/30UE,Unapportionable Central OHeads,1009,Governance,General Repairs - Reactive,20004,Repairs Maintenance & Alts,5005,Reactive blanket order until September 2015.,19/11/2015,107514,"2,261.92",Revenue,Corlett Electrical Eng Co Ltd,16271
Chorley Borough Council,http://statistics.data.gov.uk/id/local-authority/30UE,Business Support,1095,Economic Development,Grants To Other Organisations,40127,Grants and Subscriptions,5031,Shop front improvment grant,27/11/2015,107908,"4,708.12",Revenue,Cosmopolitan Wine Bar and Restaurant,49201
Chorley Borough Council,http://statistics.data.gov.uk/id/local-authority/30UE,Central Support Services,1009,Governance,General Subscriptions,40146,Grants and Subscriptions,5031,Subscription for on-line property valuations.,27/11/2015,107751,"3,180.00",Revenue,CoStar UK Limited,67985
Chorley Borough Council,http://statistics.data.gov.uk/id/local-authority/30UE,Corporate Management,1008,Health Environment & Neighbourhoods,Survey Expenses,40069,Services,5027,"Principal unmet demand survey elements Finalised rank observations / analysis / reporting -  2,635 (2) test to check no",25/11/2015,107727,"2,455.00",Revenue,CTS Traffic & Transportation Ltd,71627
Chorley Borough Council,http://statistics.data.gov.uk/id/local-authority/30UE,Unapportionable Central OHeads,1009,"Customer, ICT & Transactional",Miscellaneous Expenses,40200,Miscellaneous Expenses,5034,Service agreement number 507 - Fujitsu 5750C $ Kofax 650i renewal,11/11/2015,106650,515.55,Revenue,Cull Paperless Solutions Ltd,22097
Chorley Borough Council,http://statistics.data.gov.uk/id/local-authority/30UE,Business Support,1095,Economic Development,Miscellaneous Expenses,40200,Miscellaneous Expenses,5034,grant,11/11/2015,107209,250.00,Revenue,NAME REDACTED,72484
Chorley Borough Council,http://statistics.data.gov.uk/id/local-authority/30UE,Development Control,1091,Planning,Refunds,40220,Miscellaneous Expenses,5034,refund,06/11/2015,107363,"208,788.67",Revenue,David Wilson Homes North West,72457
Chorley Borough Council,http://statistics.data.gov.uk/id/local-authority/30UE,Service Management & Support,1009,Streetscene & Leisure Contracts,Hire Of Transport,30028,Contrct Hire & Operating Lease,5018,hire tipper,11/11/2015,106510,385.71,Revenue,Dawsonrentals Vans Ltd,68557
Chorley Borough Council,http://statistics.data.gov.uk/id/local-authority/30UE,Service Management & Support,1009,Streetscene & Leisure Contracts,Hire Of Transport,30028,Contrct Hire & Operating Lease,5018,Hire,11/11/2015,107286,398.57,Revenue,Dawsonrentals Vans Ltd,68557
Chorley Borough Council,http://statistics.data.gov.uk/id/local-authority/30UE,Business Support,1095,Governance,Consultants` Fees,40077,Services,5027,Viability Appraisal - Flat Iron Car Park Development Proposal,19/11/2015,107585,"7,350.00",Revenue,Deloitte LLP,58651
Chorley Borough Council,http://statistics.data.gov.uk/id/local-authority/30UE,General Government Grants,,Shared Service Arrangement,Revenue Support Grant,69000,Income not in NCOS,,Revenues Support,23/11/2015,107780,"-129,222.00",Revenue,Department of Communities and Local Government,16280
Chorley Borough Council,http://statistics.data.gov.uk/id/local-authority/30UE,Collection Fund Revenue Accoun,,Shared Service Arrangement,NNDR Central Share,2034,Precepts & Collection Fund,Precept,Collection Fund,23/11/2015,107780,"1,135,232.00",Revenue,Department of Communities and Local Government,16280
Chorley Borough Council,http://statistics.data.gov.uk/id/local-authority/30UE,Collection Fund Revenue Accoun,,Shared Service Arrangement,NNDR Central Share,2034,Precepts & Collection Fund,Precept,collection fund,23/11/2015,107780,"-44,209.00",Revenue,Department of Communities and Local Government,16280
Chorley Borough Council,http://statistics.data.gov.uk/id/local-authority/30UE,Collection Fund Revenue Accoun,,Shared Service Arrangement,NNDR Central Share,2034,Precepts & Collection Fund,Precept,COLLECTION FUND,23/11/2015,107780,"8,422.00",Revenue,Department of Communities and Local Government,16280
Chorley Borough Council,http://statistics.data.gov.uk/id/local-authority/30UE,Non Domestic Rates Redistribut,,Shared Service Arrangement,Tariff to Central Government,49000,Expenditure not in NCOS,,RETAINED,23/11/2015,107780,"623,339.00",Revenue,Department of Communities and Local Government,16280
Chorley Borough Council,http://statistics.data.gov.uk/id/local-authority/30UE,Unapportionable Central OHeads,1009,HR & Org. Development,HR Recruitment Expenses,15200,Indirect Employee Expenses,5002,DBS Disclosure Certificates,23/11/2015,106582,264.00,Revenue,Disclosure & Barring Service,16387
Chorley Borough Council,http://statistics.data.gov.uk/id/local-authority/30UE,Democratic Represent and  Mgnt,1007,Streetscene & Leisure Contracts,Miscellaneous Expenses,40200,Miscellaneous Expenses,5034,Shop Sales from Gruffalo Exhibition between 3rd October and 15th November 2015. 1000.00,27/11/2015,107754,"1,000.00",Revenue,Ebb and Flo Bookshop,67239
Chorley Borough Council,http://statistics.data.gov.uk/id/local-authority/30UE,Central Support Services,1009,"Customer, ICT & Transactional",Mobile Phones,40086,Communication and Computing,5028,Charges for account 16440033,19/11/2015,107360,563.50,Revenue,EE - Orange,16486
Chorley Borough Council,http://statistics.data.gov.uk/id/local-authority/30UE,Central Support Services,1009,"Customer, ICT & Transactional",Mobile Phones,40086,Communication and Computing,5028,charges,25/11/2015,107812,508.76,Revenue,EE - Orange,16486
Chorley Borough Council,http://statistics.data.gov.uk/id/local-authority/30UE,Unapportionable Central OHeads,1009,"Customer, ICT & Transactional",Mobile Phones,40086,Communication and Computing,5028,"1gb data bundle on 4g network - 2 year contract. SIMs only. 70 users x 2.50 per month x 2 years = 4,200. Please supply",19/11/2015,107571,179.55,Revenue,EE LIMITED,63366
Chorley Borough Council,http://statistics.data.gov.uk/id/local-authority/30UE,Unapportionable Central OHeads,1009,"Customer, ICT & Transactional",Mobile Phones,40086,Communication and Computing,5028,"1gb data bundle on 4g network - 2 year contract. SIMs only. 30 users x 2.50 per month x 2 years = 1,800. Please supply",19/11/2015,107571,100.00,Revenue,EE LIMITED,63366
Chorley Borough Council,http://statistics.data.gov.uk/id/local-authority/30UE,Central Support Services,1009,"Customer, ICT & Transactional",Mobile Phones,40086,Communication and Computing,5028,"1gb data bundle on 4g network - 2 year contract. SIMs only. 30 users x 2.50 per month x 2 years = 1,800. Please supply",19/11/2015,107571,100.00,Revenue,EE LIMITED,63366
Chorley Borough Council,http://statistics.data.gov.uk/id/local-authority/30UE,Central Support Services,1009,"Customer, ICT & Transactional",Mobile Phones,40086,Communication and Computing,5028,"4g iPhone 5s, 16GB, space grey, unlimited calls & texts, 1GB data 15 connections at 10 per user per month for 24 months",19/11/2015,107571,150.00,Revenue,EE LIMITED,63366
Chorley Borough Council,http://statistics.data.gov.uk/id/local-authority/30UE,Central Support Services,1009,"Customer, ICT & Transactional",Mobile Phones,40086,Communication and Computing,5028,"4g iPhone 5s, 16GB, space grey, unlimited calls & texts 1GB data 10 connections at 10 per user per month for 24 months",19/11/2015,107571,100.00,Revenue,EE LIMITED,63366
Chorley Borough Council,http://statistics.data.gov.uk/id/local-authority/30UE,Central Support Services,1009,"Customer, ICT & Transactional",Mobile Phones,40086,Communication and Computing,5028,"4g iPhone 5s, 16GB, space grey, unlimited calls & texts, 1GB data 2 connections at 10 per user per month for 24 months",19/11/2015,107571,20.00,Revenue,EE LIMITED,63366
Chorley Borough Council,http://statistics.data.gov.uk/id/local-authority/30UE,Unapportionable Central OHeads,1009,"Customer, ICT & Transactional",Mobile Phones,40086,Communication and Computing,5028,"1gb data bundle on 4g network - 2 year contract. SIMs only. 70 users x 2.50 per month x 2 years = 4,200. Please supply",19/11/2015,107572,182.02,Revenue,EE LIMITED,63366
Chorley Borough Council,http://statistics.data.gov.uk/id/local-authority/30UE,Unapportionable Central OHeads,1009,"Customer, ICT & Transactional",Mobile Phones,40086,Communication and Computing,5028,"1gb data bundle on 4g network - 2 year contract. SIMs only. 30 users x 2.50 per month x 2 years = 1,800. Please supply ",19/11/2015,107572,78.02,Revenue,EE LIMITED,63366
Chorley Borough Council,http://statistics.data.gov.uk/id/local-authority/30UE,Central Support Services,1009,"Customer, ICT & Transactional",Mobile Phones,40086,Communication and Computing,5028,"1gb data bundle on 4g network - 2 year contract. SIMs only. 30 users x 2.50 per month x 2 years = 1,800. Please supply",19/11/2015,107572,75.00,Revenue,EE LIMITED,63366
Chorley Borough Council,http://statistics.data.gov.uk/id/local-authority/30UE,Central Support Services,1009,"Customer, ICT & Transactional",Mobile Phones,40086,Communication and Computing,5028,"4g iPhone 5s, 16GB, space grey, unlimited calls & texts,1GB data.15 connections at 10 per user per month for 24 months",19/11/2015,107572,149.09,Revenue,EE LIMITED,63366
Chorley Borough Council,http://statistics.data.gov.uk/id/local-authority/30UE,Central Support Services,1009,"Customer, ICT & Transactional",Mobile Phones,40086,Communication and Computing,5028,"4g iPhone 5s, 16GB, space grey, unlimited calls & texts, 1GB data.10 connections at 10 per user per month for 24 months",19/11/2015,107572,95.00,Revenue,EE LIMITED,63366
Chorley Borough Council,http://statistics.data.gov.uk/id/local-authority/30UE,Central Support Services,1009,"Customer, ICT & Transactional",Mobile Phones,40086,Communication and Computing,5028,"4g iPhone 5s, 16GB, space grey, unlimited calls & texts,1GB data. 2 connections at 10 per user per month for 24 months",19/11/2015,107572,60.00,Revenue,EE LIMITED,63366
Chorley Borough Council,http://statistics.data.gov.uk/id/local-authority/30UE,Unapportionable Central OHeads,1009,Governance,General Repairs - Reactive,20004,Repairs Maintenance & Alts,5005,REACTIVE blanket order for 2015.,19/11/2015,107289,382.50,Revenue,Ellesmere Engineering Co Ltd,17520
Chorley Borough Council,http://statistics.data.gov.uk/id/local-authority/30UE,Democratic Represent and  Mgnt,1007,Streetscene & Leisure Contracts,Rent/Hire Of Premises,20017,Premises Rents,5007,"Building and terrorism insurance for The Coach House, Duxbury Park",27/11/2015,107869,"1,002.63",Revenue,European Settled Estates Plc,16495
Chorley Borough Council,http://statistics.data.gov.uk/id/local-authority/30UE,Service Management & Support,1009,Streetscene & Leisure Contracts,Hire Of Transport,30028,Contrct Hire & Operating Lease,5018,Hire of Case tractor and McConnell flail at price quoted via the chest for 12 month period. From 0/04/2015  to 31/03/2015,04/11/2015,106733,"1,639.84",Revenue,F R Sharrock Ltd,18091
Chorley Borough Council,http://statistics.data.gov.uk/id/local-authority/30UE,Service Management & Support,1009,Streetscene & Leisure Contracts,Registered Plant - Maintenance,40247,"Equipment, Furniture & Materia",5023,Supply items as on Pro-Forma invoice number 108356 for Ransomes parts collected by Chorley Council for the attention ,04/11/2015,107232,388.00,Revenue,F R Sharrock Ltd,18091
Chorley Borough Council,http://statistics.data.gov.uk/id/local-authority/30UE,Service Management & Support,1009,Streetscene & Leisure Contracts,Supplies-Grounds Maintenance,40025,"Equipment, Furniture & Materia",5023,Supply 45 x 15litre of Q2 pitch marking solution to be delivered to Bengal St Depot PR71SA as requested,27/11/2015,107728,"1,211.85",Revenue,Fleet Line Markers,60558
Chorley Borough Council,http://statistics.data.gov.uk/id/local-authority/30UE,Service Management & Support,1009,Streetscene & Leisure Contracts,Vehicle Maintenance,30045,Direct Transport Costs,5016,Carryout 6 weekly safety inspection on DK07LDE for Olicence compliance,11/11/2015,107389,117.63,Revenue,Freight Transport Assoc Ltd,16333
Chorley Borough Council,http://statistics.data.gov.uk/id/local-authority/30UE,Service Management & Support,1009,Streetscene & Leisure Contracts,Vehicle Maintenance,30045,Direct Transport Costs,5016,Carryout 6 weekly safety inspection on DK56JWO for Olicence compliance,11/11/2015,107389,117.63,Revenue,Freight Transport Assoc Ltd,16333
Chorley Borough Council,http://statistics.data.gov.uk/id/local-authority/30UE,Service Management & Support,1009,Streetscene & Leisure Contracts,Vehicle Maintenance,30045,Direct Transport Costs,5016,Carryout 6 weekly safety inspection on DX05CXG for Olicence compliance,11/11/2015,107389,117.63,Revenue,Freight Transport Assoc Ltd,16333
Chorley Borough Council,http://statistics.data.gov.uk/id/local-authority/30UE,Service Management & Support,1009,Streetscene & Leisure Contracts,Vehicle Maintenance,30045,Direct Transport Costs,5016,Carryout 6 weekly safety inspection on DX55CVG for Olicence compliance,11/11/2015,107389,117.63,Revenue,Freight Transport Assoc Ltd,16333
Chorley Borough Council,http://statistics.data.gov.uk/id/local-authority/30UE,Service Management & Support,1009,Streetscene & Leisure Contracts,Vehicle Maintenance,30045,Direct Transport Costs,5016,Carryout 6 weekly safety inspection on RV14DVB for Olicence compliance,11/11/2015,107389,117.63,Revenue,Freight Transport Assoc Ltd,16333
Chorley Borough Council,http://statistics.data.gov.uk/id/local-authority/30UE,Business Support,1095,Governance,Gas,20014,Energy Costs,5006,26 Gilibrand streeet,06/11/2015,107098,457.15,Revenue,Gazprom Energy,56502
Chorley Borough Council,http://statistics.data.gov.uk/id/local-authority/30UE,Business Support,1095,Governance,Electricity,20013,Energy Costs,5006,Gas,27/11/2015,107806,258.20,Revenue,Gazprom Energy,56502
Chorley Borough Council,http://statistics.data.gov.uk/id/local-authority/30UE,Democratic Represent and  Mgnt,1007,Streetscene & Leisure Contracts,Playground Equipment,40008,"Equipment, Furniture & Materia",5023,1- 1.2m Birds Nest Seat,04/11/2015,107147,605.00,Revenue,GB Sport & Leisure,21305
Chorley Borough Council,http://statistics.data.gov.uk/id/local-authority/30UE,Capital,Capital,Streetscene & Leisure Contracts,Main Contractor,3007,Capital Expenditure,Capital,"Cost for the Cherry Picker for assessing the render at Astley Hall from Smart Platform Rental 369.00 VAT 73.80 442.80",13/11/2015,107536,369.00,Capital,Geoff W Maybank,64389
Chorley Borough Council,http://statistics.data.gov.uk/id/local-authority/30UE,Central Support Services,1009,Health Environment & Neighbourhoods,Impounded Dogs Costs,40207,Miscellaneous Expenses,5034,Kennelling fees for 2015/16,19/11/2015,107529,255.00,Revenue,Glencoe Boarding Kennels,16734
Chorley Borough Council,http://statistics.data.gov.uk/id/local-authority/30UE,Unapportionable Central OHeads,1009,HR & Org. Development,HR Approved Training Expenses,17001,Indirect Employee Expenses,5002,Presentation Skills Training,25/11/2015,107856,650.00,Revenue,Greenfield Training Consultants,21161
Chorley Borough Council,http://statistics.data.gov.uk/id/local-authority/30UE,Corporate Management,1008,Shared Service Arrangement,HM Land Registry Fees,40174,Miscellaneous Expenses,5034,Land Reg,23/11/2015,107766,6.00,Revenue,H M Land Registry,17567
Chorley Borough Council,http://statistics.data.gov.uk/id/local-authority/30UE,Housing Strategy,1069,Shared Service Arrangement,HM Land Registry Fees,40174,Miscellaneous Expenses,5034,Land Reg,23/11/2015,107766,18.00,Revenue,H M Land Registry,17567
Chorley Borough Council,http://statistics.data.gov.uk/id/local-authority/30UE,Unapportionable Central OHeads,1009,Shared Service Arrangement,HM Land Registry Fees,40174,Miscellaneous Expenses,5034,Land Reg,23/11/2015,107766,6.00,Revenue,H M Land Registry,17567
Chorley Borough Council,http://statistics.data.gov.uk/id/local-authority/30UE,Unapportionable Central OHeads,1009,Shared Service Arrangement,HM Land Registry Fees,40174,Miscellaneous Expenses,5034,Land Reg,23/11/2015,107766,146.00,Revenue,H M Land Registry,17567
Chorley Borough Council,http://statistics.data.gov.uk/id/local-authority/30UE,Unapportionable Central OHeads,1009,Shared Service Arrangement,HM Land Registry Fees,40174,Miscellaneous Expenses,5034,Land Reg,23/11/2015,107766,24.00,Revenue,H M Land Registry,17567
Chorley Borough Council,http://statistics.data.gov.uk/id/local-authority/30UE,Development Control,1091,Shared Service Arrangement,HM Land Registry Fees,40174,Miscellaneous Expenses,5034,Land Reg,23/11/2015,107766,363.00,Revenue,H M Land Registry,17567
Chorley Borough Council,http://statistics.data.gov.uk/id/local-authority/30UE,Corporate Management,1008,Shared Service Arrangement,HM Land Registry Fees,40174,Miscellaneous Expenses,5034,Land Reg,23/11/2015,107766,43.00,Revenue,H M Land Registry,17567
Chorley Borough Council,http://statistics.data.gov.uk/id/local-authority/30UE,Economic Development,1096,Shared Service Arrangement,Miscellaneous Expenses,40200,Miscellaneous Expenses,5034,Land Reg,23/11/2015,107766,10.00,Revenue,H M Land Registry,17567
Chorley Borough Council,http://statistics.data.gov.uk/id/local-authority/30UE,Unapportionable Central OHeads,1009,Shared Service Arrangement,HM Land Registry Fees,40174,Miscellaneous Expenses,5034,Land Reg,23/11/2015,107766,6.00,Revenue,H M Land Registry,17567
Chorley Borough Council,http://statistics.data.gov.uk/id/local-authority/30UE,Housing Strategy,1069,Shared Service Arrangement,HM Land Registry Fees,40174,Miscellaneous Expenses,5034,Land Reg,23/11/2015,107768,15.00,Revenue,H M Land Registry,17567
Chorley Borough Council,http://statistics.data.gov.uk/id/local-authority/30UE,Unapportionable Central OHeads,1009,Shared Service Arrangement,HM Land Registry Fees,40174,Miscellaneous Expenses,5034,land Reg,23/11/2015,107768,77.00,Revenue,H M Land Registry,17567
Chorley Borough Council,http://statistics.data.gov.uk/id/local-authority/30UE,Unapportionable Central OHeads,1009,Shared Service Arrangement,HM Land Registry Fees,40174,Miscellaneous Expenses,5034,Land Reg,23/11/2015,107768,36.00,Revenue,H M Land Registry,17567
Chorley Borough Council,http://statistics.data.gov.uk/id/local-authority/30UE,Development Control,1091,Shared Service Arrangement,HM Land Registry Fees,40174,Miscellaneous Expenses,5034,Land Reg,23/11/2015,107768,226.00,Revenue,H M Land Registry,17567
Chorley Borough Council,http://statistics.data.gov.uk/id/local-authority/30UE,Corporate Management,1008,Shared Service Arrangement,HM Land Registry Fees,40174,Miscellaneous Expenses,5034,Land Reg,23/11/2015,107768,22.00,Revenue,H M Land Registry,17567
Chorley Borough Council,http://statistics.data.gov.uk/id/local-authority/30UE,Economic Development,1096,Shared Service Arrangement,Miscellaneous Expenses,40200,Miscellaneous Expenses,5034,Land Reg,23/11/2015,107768,10.00,Revenue,H M Land Registry,17567
Chorley Borough Council,http://statistics.data.gov.uk/id/local-authority/30UE,Service Management & Support,1009,Streetscene & Leisure Contracts,Publicity - Advertising,40157,Miscellaneous Expenses,5034,"Yarrow Valley Walk leaflets, x4 kinds, 500 off each, 2000 in total",04/11/2015,107128,293.00,Revenue,Haslam PrintersLtd,21777
Chorley Borough Council,http://statistics.data.gov.uk/id/local-authority/30UE,Planning Policy,1092,Planning,Publications,40054,"Printing, Stationery & General",5026,50 copies of the Local Plan Document with PVC Pocket and maps,27/11/2015,107936,734.00,Revenue,Haslam PrintersLtd,21777
Chorley Borough Council,http://statistics.data.gov.uk/id/local-authority/30UE,Planning Policy,1092,Planning,Publications,40054,"Printing, Stationery & General",5026,50 copies of the Local Plan Document with PVC Pocket and maps,27/11/2015,107940,734.00,Revenue,Haslam PrintersLtd,21777
Chorley Borough Council,http://statistics.data.gov.uk/id/local-authority/30UE,Business Support,1095,Economic Development,Grants To Other Organisations,40127,Grants and Subscriptions,5031,havana,11/11/2015,107496,"4,080.00",Revenue,Havana Brasserie Ltd,72660
Chorley Borough Council,http://statistics.data.gov.uk/id/local-authority/30UE,Business Support,1095,Economic Development,Miscellaneous Expenses,40200,Miscellaneous Expenses,5034,SIB grant,30/11/2015,107906,250.00,Revenue,NAME REDACTED,72916
Chorley Borough Council,http://statistics.data.gov.uk/id/local-authority/30UE,Service Management & Support,1009,Streetscene & Leisure Contracts,Supplies-Grounds Maintenance,40025,"Equipment, Furniture & Materia",5023,2 pallets of Westland Multipurpose compost,04/11/2015,107148,370.50,Revenue,Henry Alty Limited,22048
Chorley Borough Council,http://statistics.data.gov.uk/id/local-authority/30UE,Democratic Represent and  Mgnt,1007,Governance,Grants To Other Organisations,40127,Grants and Subscriptions,5031,Comm grnat fund,27/11/2015,107917,250.00,Revenue,Heskin w Wrightington St James CE Church,72797
Chorley Borough Council,http://statistics.data.gov.uk/id/local-authority/30UE,Other Short Term Debtors,,Shared Service Arrangement,General Balances,100,Balance Sheet,Balance,Payment of VAT,30/11/2015,107911,"92,463.86",Revenue,HM Customs And Excise,17569
Chorley Borough Council,http://statistics.data.gov.uk/id/local-authority/30UE,Development Control,1091,Governance,Legal Fees,40171,Miscellaneous Expenses,5034,,19/11/2015,107507,"1,005.00",Revenue,HMCTS,72237
Chorley Borough Council,http://statistics.data.gov.uk/id/local-authority/30UE,Community Development,1097,Policy & Performance,Core Funding Grants,40133,Grants and Subscriptions,5031,2nd payment for 2015 16 Delivery of a family support service,11/11/2015,107471,"11,000.00",Revenue,Home-Start Central Lancashire Ltd,20585
Chorley Borough Council,http://statistics.data.gov.uk/id/local-authority/30UE,Corporate Management,1008,Policy & Performance,General Subscriptions,40146,Grants and Subscriptions,5031,Access to LG Inform Plus,30/11/2015,107977,735.00,Revenue,Idea,17534
Chorley Borough Council,http://statistics.data.gov.uk/id/local-authority/30UE,Unapportionable Central OHeads,1009,Governance,General Subscriptions,40146,Grants and Subscriptions,5031,annual licnece,04/11/2015,107144,"2,566.48",Revenue,Iken Business Limited,22068
Chorley Borough Council,http://statistics.data.gov.uk/id/local-authority/30UE,Unapportionable Central OHeads,1009,HR & Org. Development,HR Approved Training Expenses,17001,Indirect Employee Expenses,5002,Project Management Workshop 02/10/15,13/11/2015,107594,"1,140.00",Revenue,Instep UK Ltd,65300
Chorley Borough Council,http://statistics.data.gov.uk/id/local-authority/30UE,Business Support,1095,Economic Development,Cleaning/Attendants' Services,20041,Cleaning and Domestic Supplies,5012,Daily Cleaning Services for Market Walk SC October 2015,11/11/2015,107334,"4,043.04",Revenue,Interserve,70619
Chorley Borough Council,http://statistics.data.gov.uk/id/local-authority/30UE,Economic Development,1096,Economic Development,Publicity - Advertising,40157,Miscellaneous Expenses,5034,"Please erect, maintain and remove festive bunting as per quote no 1410",20/11/2015,107049,"1,660.00",Revenue,J M Services (North West) Ltd,17837
Chorley Borough Council,http://statistics.data.gov.uk/id/local-authority/30UE,Community Development,1097,Governance,Rent/Hire Of Premises,20017,Premises Rents,5007,"Rent and insurance charge for 35-39 Market Street, Chorley.",27/11/2015,107758,772.64,Revenue,J R Keys,17124
Chorley Borough Council,http://statistics.data.gov.uk/id/local-authority/30UE,Business Support,1095,Economic Development,Miscellaneous Expenses,40200,Miscellaneous Expenses,5034,SIB,11/11/2015,107503,250.00,Revenue,NAME REDACTED,72386
Chorley Borough Council,http://statistics.data.gov.uk/id/local-authority/30UE,Corporate Management,1008,Streetscene & Leisure Contracts,General Repairs - Reactive,20004,Repairs Maintenance & Alts,5005,170 Saxon Buff flags. 600mm x 600mm x 35mm,25/11/2015,107715,643.20,Revenue,Jewsons Limited,17844
Chorley Borough Council,http://statistics.data.gov.uk/id/local-authority/30UE,Corporate Management,1008,Streetscene & Leisure Contracts,General Repairs - Reactive,20004,Repairs Maintenance & Alts,5005,170 Saxon Buff flags. 600mm x 600mm x 35mm,25/11/2015,107759,643.20,Revenue,Jewsons Limited,17844
Chorley Borough Council,http://statistics.data.gov.uk/id/local-authority/30UE,Development Control,1091,Planning,Statutory Notices,40160,Miscellaneous Expenses,5034,Planning Public Notices to appear in the Chorley Guardian April 2015 to March 2016,04/11/2015,107283,477.92,Revenue,Johnston Publishing Ltd,20072
Chorley Borough Council,http://statistics.data.gov.uk/id/local-authority/30UE,Service Management & Support,1009,Streetscene & Leisure Contracts,Vehicle Maintenance,30045,Direct Transport Costs,5016,Carryout C service on Johnston VT651 reg No RV14DVB as on order number 8162395 as requested,25/11/2015,107842,579.00,Revenue,Johnston Sweepers Limited,20778
Chorley Borough Council,http://statistics.data.gov.uk/id/local-authority/30UE,Homelessness,1075,Housing,External Contractor,40198,Miscellaneous Expenses,5034,Provision of Housing Drop In & Mediation,11/11/2015,107472,"4,750.00",Revenue,Key,61252
Chorley Borough Council,http://statistics.data.gov.uk/id/local-authority/30UE,Central Support Services,1009,Health Environment & Neighbourhoods,Pest Control,20039,Cleaning and Domestic Supplies,5012,Sakarat Bromabait place packs,06/11/2015,107265,196.92,Revenue,Killgerm Chemicals Ltd,16879
Chorley Borough Council,http://statistics.data.gov.uk/id/local-authority/30UE,Central Support Services,1009,Health Environment & Neighbourhoods,Pest Control,20039,Cleaning and Domestic Supplies,5012,Contrac Super Blox 40 x 225g,06/11/2015,107265,244.92,Revenue,Killgerm Chemicals Ltd,16879
Chorley Borough Council,http://statistics.data.gov.uk/id/local-authority/30UE,Central Support Services,1009,Health Environment & Neighbourhoods,Pest Control,20039,Cleaning and Domestic Supplies,5012,Tyre baiter,06/11/2015,107265,62.82,Revenue,Killgerm Chemicals Ltd,16879
Chorley Borough Council,http://statistics.data.gov.uk/id/local-authority/30UE,Central Support Services,1009,Health Environment & Neighbourhoods,Pest Control,20039,Cleaning and Domestic Supplies,5012,Pack of 3 Anchor pins,06/11/2015,107265,5.76,Revenue,Killgerm Chemicals Ltd,16879
Chorley Borough Council,http://statistics.data.gov.uk/id/local-authority/30UE,Central Support Services,1009,Health Environment & Neighbourhoods,Pest Control,20039,Cleaning and Domestic Supplies,5012,Stainless steel bait rods,06/11/2015,107265,23.52,Revenue,Killgerm Chemicals Ltd,16879
Chorley Borough Council,http://statistics.data.gov.uk/id/local-authority/30UE,Democratic Represent and  Mgnt,1007,Policy & Performance,Supplies-Grounds Maintenance,40025,"Equipment, Furniture & Materia",5023,Fireworks display for Bonfire and Firework event in Astley Park,27/11/2015,107927,"5,000.00",Revenue,Komodo Fireworks Ltd,72809
Chorley Borough Council,http://statistics.data.gov.uk/id/local-authority/30UE,Unapportionable Central OHeads,1009,Policy & Performance,Exhibitions & Special Events,40158,Miscellaneous Expenses,5034,Pyrotechnics at Christmas Lights Switch On event,27/11/2015,107928,"1,800.00",Revenue,Komodo Fireworks Ltd,72809
Chorley Borough Council,http://statistics.data.gov.uk/id/local-authority/30UE,Democratic Represent and  Mgnt,1007,Streetscene & Leisure Contracts,Miscellaneous Expenses,40200,Miscellaneous Expenses,5034,"LPM Artist fees 3400 residency at St Michaels 600 R & D training for artists 700 Composer 1100 Choreographer 1500",04/11/2015,107228,"7,598.70",Revenue,La Petite Mort Theatre,72384
Chorley Borough Council,http://statistics.data.gov.uk/id/local-authority/30UE,Democratic Represent and  Mgnt,1007,Streetscene & Leisure Contracts,Miscellaneous Expenses,40200,Miscellaneous Expenses,5034,Costume provided by Hilli McManus for filming and performances as part of Grants for Arts Project culminating with Astle,13/11/2015,107468,550.00,Revenue,La Petite Mort Theatre,72384
Chorley Borough Council,http://statistics.data.gov.uk/id/local-authority/30UE,Business Support,1095,Governance,Consultants` Fees,40077,Services,5027,"For professional charges at Unit 1, 102B Market Street, Chorley.",19/11/2015,107535,"2,000.00",Revenue,Lambert Smith Hampton,17687
Chorley Borough Council,http://statistics.data.gov.uk/id/local-authority/30UE,Unapportionable Central OHeads,1009,Shared Service Arrangement,Consultants` Fees,40077,Services,5027,Production of IAS 19 Disclosures 2014/15,11/11/2015,107241,809.23,Revenue,Lancashire County Council,17758
Chorley Borough Council,http://statistics.data.gov.uk/id/local-authority/30UE,Service Management & Support,1009,Streetscene & Leisure Contracts,External Contractor,40198,Miscellaneous Expenses,5034,"Repair to lighting columns at garage site off Eaves Lane, Chorley 23 April 2015",11/11/2015,107456,112.21,Revenue,Lancashire County Council,17758
Chorley Borough Council,http://statistics.data.gov.uk/id/local-authority/30UE,Service Management & Support,1009,Streetscene & Leisure Contracts,External Contractor,40198,Miscellaneous Expenses,5034,Repairs to lighting columns on Hallgate car park on 5 May 2015,11/11/2015,107456,105.14,Revenue,Lancashire County Council,17758
Chorley Borough Council,http://statistics.data.gov.uk/id/local-authority/30UE,Parking Services,1066,Streetscene & Leisure Contracts,Car Park Lamps,20064,Grounds Maintenance Costs,5013,Repairs to lighting columns on St Marys and Peter St car parks 14 to 17 August 2015,11/11/2015,107456,281.58,Revenue,Lancashire County Council,17758
Chorley Borough Council,http://statistics.data.gov.uk/id/local-authority/30UE,Service Management & Support,1009,Streetscene & Leisure Contracts,External Contractor,40198,Miscellaneous Expenses,5034,Installation of new lighting and repairs to Tatton Recreation ground and bowling green 2015,11/11/2015,107456,"2,054.97",Revenue,Lancashire County Council,17758
Chorley Borough Council,http://statistics.data.gov.uk/id/local-authority/30UE,Parking Services,1066,Streetscene & Leisure Contracts,Tools & Equipment - Maintenance,40005,"Equipment, Furniture & Materia",5023,Callouts to Union St and George St car parks to make safe ticket machines 26 Oct 2015,11/11/2015,107456,100.00,Revenue,Lancashire County Council,17758
Chorley Borough Council,http://statistics.data.gov.uk/id/local-authority/30UE,Unapportionable Central OHeads,1009,Shared Service Arrangement,Pensions Increase Act Payments,18005,Indirect Employee Expenses,5002,Sept,23/11/2015,107771,"17,842.86",Revenue,Lancashire County Council,18386
Chorley Borough Council,http://statistics.data.gov.uk/id/local-authority/30UE,Collection Fund Revenue Accoun,,Shared Service Arrangement,NNDR County Share,2036,Precepts & Collection Fund,Precept,NNDR,23/11/2015,107775,"247,375.00",Revenue,Lancashire County Council,18386
Chorley Borough Council,http://statistics.data.gov.uk/id/local-authority/30UE,Precepts and Collection Fund,Precepts,Shared Service Arrangement,LCC Precept,2009,Precepts & Collection Fund,Precept,precept,23/11/2015,107776,"3,975,062.00",Revenue,Lancashire County Council,18386
Chorley Borough Council,http://statistics.data.gov.uk/id/local-authority/30UE,Unapportionable Central OHeads,1009,Shared Service Arrangement,Pensions Increase Act Payments,18005,Indirect Employee Expenses,5002,precept,23/11/2015,107777,"18,581.52",Revenue,Lancashire County Council,18386
Chorley Borough Council,http://statistics.data.gov.uk/id/local-authority/30UE,Capital,Capital,Housing,Grants,3002,Capital Expenditure,Capital,ADDRESS REDACTED,27/11/2015,107913,"4,565.00",Capital,Lancashire County Council,17758
Chorley Borough Council,http://statistics.data.gov.uk/id/local-authority/30UE,Capital,Capital,Housing,Grants,3002,Capital Expenditure,Capital,ADDRESS REDACTED,27/11/2015,107916,"4,967.00",Capital,Lancashire County Council,17758
Chorley Borough Council,http://statistics.data.gov.uk/id/local-authority/30UE,Service Management & Support,1009,Streetscene & Leisure Contracts,Vehicle Maintenance,30045,Direct Transport Costs,5016,Investigate wiring fault on RV14DVB supply and fit new ignition switch as on invoice number,19/11/2015,107587,557.58,Revenue,LANCASHIRE DAF,18149
Chorley Borough Council,http://statistics.data.gov.uk/id/local-authority/30UE,Corporate Management,1008,Policy & Performance,Other Fees,40212,Miscellaneous Expenses,5034,Subsidy for the provision of a Meals on Wheels service in Chorley to 1 November,11/11/2015,107382,845.49,Revenue,Lancashire Fayre,62967
Chorley Borough Council,http://statistics.data.gov.uk/id/local-authority/30UE,Unapportionable Central OHeads,1009,Shared Service Arrangement,Pensions Deficit Recovery Contributions,12003,Direct Employee Expenses,5001,ees,23/11/2015,106438,"42,913.54",Revenue,Lancashire Pensions Services,16696
Chorley Borough Council,http://statistics.data.gov.uk/id/local-authority/30UE,Unapportionable Central OHeads,1009,Shared Service Arrangement,Pensions Deficit Recovery Contributions,12003,Direct Employee Expenses,5001,ers,23/11/2015,106441,"71,870.33",Revenue,Lancashire Pensions Services,16696
Chorley Borough Council,http://statistics.data.gov.uk/id/local-authority/30UE,Unapportionable Central OHeads,1009,Shared Service Arrangement,Pensions Deficit Recovery Contributions,12003,Direct Employee Expenses,5001,DEFICIT,23/11/2015,107770,"69,325.00",Revenue,Lancashire Pensions Services,16696
Chorley Borough Council,http://statistics.data.gov.uk/id/local-authority/30UE,Precepts and Collection Fund,Precepts,Shared Service Arrangement,LCFA Precept,2011,Precepts & Collection Fund,Precept,Oct,23/11/2015,107773,"228,207.00",Revenue,Lancs Combined Fire Authority,17768
Chorley Borough Council,http://statistics.data.gov.uk/id/local-authority/30UE,Collection Fund Revenue Accoun,,Shared Service Arrangement,NNDR Fire Share,2037,Precepts & Collection Fund,Precept,Precept,23/11/2015,107774,"27,486.00",Revenue,Lancs Combined Fire Authority,17768
Chorley Borough Council,http://statistics.data.gov.uk/id/local-authority/30UE,Business Support,1095,Economic Development,Miscellaneous Expenses,40200,Miscellaneous Expenses,5034,SIB grant,11/11/2015,107367,250.00,Revenue,NAME REDACTED,72577
Chorley Borough Council,http://statistics.data.gov.uk/id/local-authority/30UE,Homelessness,1075,Housing,Prevention Fund,40242,Miscellaneous Expenses,5034,bond scheme,11/11/2015,107502,550.00,Revenue,NAME REDACTED,72653
Chorley Borough Council,http://statistics.data.gov.uk/id/local-authority/30UE,Other Short Term Debtors,,HR & Org. Development,Other Debtors,98,Balance Sheet,Balance,iPhones x 6,19/11/2015,107518,"3,935.83",Revenue,Lets Connect Limited,68086
Chorley Borough Council,http://statistics.data.gov.uk/id/local-authority/30UE,Other Short Term Debtors,,HR & Org. Development,Other Debtors,98,Balance Sheet,Balance,iPads etc,19/11/2015,107519,"3,964.50",Revenue,Lets Connect Limited,68086
Chorley Borough Council,http://statistics.data.gov.uk/id/local-authority/30UE,Unapportionable Central OHeads,1009,"Customer, ICT & Transactional",Agency Staff,13000,Direct Employee Expenses,5001,empty homes review,11/11/2015,105619,"11,575.21",Revenue,Liberata (Capacity Grid),67989
Chorley Borough Council,http://statistics.data.gov.uk/id/local-authority/30UE,Unapportionable Central OHeads,1009,"Customer, ICT & Transactional",Agency Staff,13000,Direct Employee Expenses,5001,Chorley Council - Empty Homes Review 2015,27/11/2015,107336,"1,162.47",Revenue,Liberata (Capacity Grid),67989
Chorley Borough Council,http://statistics.data.gov.uk/id/local-authority/30UE,Unapportionable Central OHeads,1009,Governance,Asset Maintenance Fund,20012,Repairs Maintenance & Alts,5005,Sep-15,19/11/2015,107356,"2,763.16",Revenue,Liberata UK,20716
Chorley Borough Council,http://statistics.data.gov.uk/id/local-authority/30UE,Unapportionable Central OHeads,1009,Governance,Asset Maintenance Fund,20012,Repairs Maintenance & Alts,5005,Oct-15,19/11/2015,107421,"3,947.12",Revenue,Liberata UK,20716
Chorley Borough Council,http://statistics.data.gov.uk/id/local-authority/30UE,Capital,Capital,Streetscene & Leisure Contracts,Main Contractor,3007,Capital Expenditure,Capital,Extension to Clayton Brook Village hall,06/11/2015,107226,"62,182.08",Capital,Link Contracting Services Ltd,71226
Chorley Borough Council,http://statistics.data.gov.uk/id/local-authority/30UE,Business Support,1095,Economic Development,Miscellaneous Expenses,40200,Miscellaneous Expenses,5034,SIB GRANT,11/11/2015,107362,250.00,Revenue,NAME REDACTED,72576
Chorley Borough Council,http://statistics.data.gov.uk/id/local-authority/30UE,Central Support Services,1009,Health Environment & Neighbourhoods,Miscellaneous Expenses,40200,Miscellaneous Expenses,5034,Delivery of rock climbing on Friday 6th Nov,11/11/2015,107482,500.00,Revenue,Lister Logic LTD,22431
Chorley Borough Council,http://statistics.data.gov.uk/id/local-authority/30UE,Corporate Management,1008,Policy & Performance,Publicity - Advertising,40157,Miscellaneous Expenses,5034,Full page adverts in 2 editions of Local Life magazine for Market Walk,04/11/2015,107238,360.00,Revenue,Local Life 247 Ltd.,63624
Chorley Borough Council,http://statistics.data.gov.uk/id/local-authority/30UE,Capital,Capital,Streetscene & Leisure Contracts,Main Contractor,3007,Capital Expenditure,Capital,"The Willows, Eaves Green, Chorley Supply and installation of 180 lm internal and 800m ext temporary amphibian fencing",25/11/2015,107840,"7,387.08",Capital,Lowther Forestry Group Ltd,71333
Chorley Borough Council,http://statistics.data.gov.uk/id/local-authority/30UE,Business Support,1095,Economic Development,Miscellaneous Expenses,40200,Miscellaneous Expenses,5034,grant,04/11/2015,107212,250.00,Revenue,NAME REDACTED,72459
Chorley Borough Council,http://statistics.data.gov.uk/id/local-authority/30UE,Unapportionable Central OHeads,1009,Health Environment & Neighbourhoods,Stationery,40050,"Printing, Stationery & General",5026,"5C5 WINDOW ENVELOPES (WHITE, SELF SEAL)",19/11/2015,107635,50.26,Revenue,Lyreco UK Ltd,17623
Chorley Borough Council,http://statistics.data.gov.uk/id/local-authority/30UE,Unapportionable Central OHeads,1009,Health Environment & Neighbourhoods,Stationery,40050,"Printing, Stationery & General",5026,Box of 500 envelopes (white self seal) plain C5,19/11/2015,107635,3.31,Revenue,Lyreco UK Ltd,17623
Chorley Borough Council,http://statistics.data.gov.uk/id/local-authority/30UE,Unapportionable Central OHeads,1009,Health Environment & Neighbourhoods,Stationery,40050,"Printing, Stationery & General",5026,Lyreco White C4 Self Seal Plain Envelopes 100Gsm - Box Of 250,19/11/2015,107635,3.04,Revenue,Lyreco UK Ltd,17623
Chorley Borough Council,http://statistics.data.gov.uk/id/local-authority/30UE,Unapportionable Central OHeads,1009,Health Environment & Neighbourhoods,Stationery,40050,"Printing, Stationery & General",5026,Lyreco White C4 Self Seal Window Envelopes 100Gsm - Box Of 250,19/11/2015,107635,3.14,Revenue,Lyreco UK Ltd,17623
Chorley Borough Council,http://statistics.data.gov.uk/id/local-authority/30UE,Unapportionable Central OHeads,1009,Health Environment & Neighbourhoods,Stationery,40050,"Printing, Stationery & General",5026,Lyreco Crepe Masking Tape - 25Mm X 50M Roll,19/11/2015,107635,7.68,Revenue,Lyreco UK Ltd,17623
Chorley Borough Council,http://statistics.data.gov.uk/id/local-authority/30UE,Unapportionable Central OHeads,1009,Health Environment & Neighbourhoods,Stationery,40050,"Printing, Stationery & General",5026,Plastic Shredder Bags 160L Pack 100,19/11/2015,107635,77.99,Revenue,Lyreco UK Ltd,17623
Chorley Borough Council,http://statistics.data.gov.uk/id/local-authority/30UE,Corporate Management,1008,Health Environment & Neighbourhoods,Stationery,40050,"Printing, Stationery & General",5026,HP C8766 colour cartridge No 343 for use with Officejet 7410,19/11/2015,107635,66.68,Revenue,Lyreco UK Ltd,17623
Chorley Borough Council,http://statistics.data.gov.uk/id/local-authority/30UE,Corporate Management,1008,Health Environment & Neighbourhoods,Stationery,40050,"Printing, Stationery & General",5026,Hp C8767 No.339 Original Inkjet Cartridge - Black,19/11/2015,107635,85.76,Revenue,Lyreco UK Ltd,17623
Chorley Borough Council,http://statistics.data.gov.uk/id/local-authority/30UE,Unapportionable Central OHeads,1009,Health Environment & Neighbourhoods,Stationery,40050,"Printing, Stationery & General",5026,Polyproplylene Foldover Clipboard Black,19/11/2015,107635,4.49,Revenue,Lyreco UK Ltd,17623
Chorley Borough Council,http://statistics.data.gov.uk/id/local-authority/30UE,Unapportionable Central OHeads,1009,Health Environment & Neighbourhoods,Stationery,40050,"Printing, Stationery & General",5026,Lyreco Plain Yellow Sticky Notes 75 X 75Mm - Pack Of 12 Pads,19/11/2015,107635,4.32,Revenue,Lyreco UK Ltd,17623
Chorley Borough Council,http://statistics.data.gov.uk/id/local-authority/30UE,Unapportionable Central OHeads,1009,Health Environment & Neighbourhoods,Stationery,40050,"Printing, Stationery & General",5026,Lyreco Plain Yellow Sticky Notes 125 X 75Mm - Pack Of 12 Pads,19/11/2015,107635,1.20,Revenue,Lyreco UK Ltd,17623
Chorley Borough Council,http://statistics.data.gov.uk/id/local-authority/30UE,Unapportionable Central OHeads,1009,Health Environment & Neighbourhoods,Stationery,40050,"Printing, Stationery & General",5026,A4 clear punched pockets,19/11/2015,107635,6.96,Revenue,Lyreco UK Ltd,17623
Chorley Borough Council,http://statistics.data.gov.uk/id/local-authority/30UE,Unapportionable Central OHeads,1009,Health Environment & Neighbourhoods,Stationery,40050,"Printing, Stationery & General",5026,Micron Ball Point Black Stick Pens 0.7Mm Line Width - Box Of 50,19/11/2015,107635,4.50,Revenue,Lyreco UK Ltd,17623
Chorley Borough Council,http://statistics.data.gov.uk/id/local-authority/30UE,Unapportionable Central OHeads,1009,Health Environment & Neighbourhoods,Stationery,40050,"Printing, Stationery & General",5026,Micron Ball Point Blue Stick Pens 0.7Mm Line Width - Box Of 50,19/11/2015,107635,1.50,Revenue,Lyreco UK Ltd,17623
Chorley Borough Council,http://statistics.data.gov.uk/id/local-authority/30UE,Unapportionable Central OHeads,1009,Health Environment & Neighbourhoods,Stationery,40050,"Printing, Stationery & General",5026,LYRECO NOTEBOOK A4 80 SHEETS 70 GSM RULED DOUBLE WIRE - PACK OF 5,19/11/2015,107635,6.10,Revenue,Lyreco UK Ltd,17623
Chorley Borough Council,http://statistics.data.gov.uk/id/local-authority/30UE,Corporate Management,1008,Health Environment & Neighbourhoods,Stationery,40050,"Printing, Stationery & General",5026,Black And Red Manuscript Books A4 710366,19/11/2015,107635,24.27,Revenue,Lyreco UK Ltd,17623
Chorley Borough Council,http://statistics.data.gov.uk/id/local-authority/30UE,Unapportionable Central OHeads,1009,Health Environment & Neighbourhoods,Stationery,40050,"Printing, Stationery & General",5026,Impega Budget Hb Eraser Tipped Pencils - Box Of 12,19/11/2015,107635,1.57,Revenue,Lyreco UK Ltd,17623
Chorley Borough Council,http://statistics.data.gov.uk/id/local-authority/30UE,Democratic Represent and  Mgnt,1007,Streetscene & Leisure Contracts,Grounds Maintenance Contractor,20043,Grounds Maintenance Costs,5013,"management at ponds and woodland off Gib Lane, Houghton. 2 days hedge cutting works and 1 day woodland management",11/11/2015,107490,"1,125.00",Revenue,M J Walker,62044
Chorley Borough Council,http://statistics.data.gov.uk/id/local-authority/30UE,Business Support,1095,Economic Development,Miscellaneous Expenses,40200,Miscellaneous Expenses,5034,SIB,11/11/2015,107505,250.00,Revenue,NAME REDACTED,72652
Chorley Borough Council,http://statistics.data.gov.uk/id/local-authority/30UE,Service Management & Support,1009,Policy & Performance,Miscellaneous Expenses,40200,Miscellaneous Expenses,5034,Four tickets for the Lancashire Tourism Awards 2015,04/11/2015,107134,260.00,Revenue,Marketing Lancashire,65208
Chorley Borough Council,http://statistics.data.gov.uk/id/local-authority/30UE,Unapportionable Central OHeads,1009,HR & Org. Development,Agency Staff,13000,Direct Employee Expenses,5001,Agency Staff,04/11/2015,106972,425.53,Revenue,Matrix SCM Ltd,22128
Chorley Borough Council,http://statistics.data.gov.uk/id/local-authority/30UE,Unapportionable Central OHeads,1009,HR & Org. Development,Agency Staff,13000,Direct Employee Expenses,5001,Agency Staff,04/11/2015,106972,143.26,Revenue,Matrix SCM Ltd,22128
Chorley Borough Council,http://statistics.data.gov.uk/id/local-authority/30UE,Unapportionable Central OHeads,1009,HR & Org. Development,Agency Staff,13000,Direct Employee Expenses,5001,Agency Staff,04/11/2015,106973,419.63,Revenue,Matrix SCM Ltd,22128
Chorley Borough Council,http://statistics.data.gov.uk/id/local-authority/30UE,Unapportionable Central OHeads,1009,HR & Org. Development,Agency Staff,13000,Direct Employee Expenses,5001,Agency Staff,04/11/2015,107184,416.67,Revenue,Matrix SCM Ltd,22128
Chorley Borough Council,http://statistics.data.gov.uk/id/local-authority/30UE,Unapportionable Central OHeads,1009,HR & Org. Development,Agency Staff,13000,Direct Employee Expenses,5001,Agency Staff,19/11/2015,107530,768.33,Revenue,Matrix SCM Ltd,22128
Chorley Borough Council,http://statistics.data.gov.uk/id/local-authority/30UE,Unapportionable Central OHeads,1009,HR & Org. Development,Agency Staff,13000,Direct Employee Expenses,5001,Agency Staff,19/11/2015,107530,264.48,Revenue,Matrix SCM Ltd,22128
Chorley Borough Council,http://statistics.data.gov.uk/id/local-authority/30UE,Unapportionable Central OHeads,1009,HR & Org. Development,Agency Staff,13000,Direct Employee Expenses,5001,Agency Staff,19/11/2015,107559,333.48,Revenue,Matrix SCM Ltd,22128
Chorley Borough Council,http://statistics.data.gov.uk/id/local-authority/30UE,Unapportionable Central OHeads,1009,HR & Org. Development,Agency Staff,13000,Direct Employee Expenses,5001,Agency Staff,19/11/2015,107559,99.18,Revenue,Matrix SCM Ltd,22128
Chorley Borough Council,http://statistics.data.gov.uk/id/local-authority/30UE,Unapportionable Central OHeads,1009,HR & Org. Development,Agency Staff,13000,Direct Employee Expenses,5001,Agency Staff,30/11/2015,107923,431.73,Revenue,Matrix SCM Ltd,22128
Chorley Borough Council,http://statistics.data.gov.uk/id/local-authority/30UE,Unapportionable Central OHeads,1009,HR & Org. Development,Agency Staff,13000,Direct Employee Expenses,5001,Agency Staff,30/11/2015,107923,165.30,Revenue,Matrix SCM Ltd,22128
Chorley Borough Council,http://statistics.data.gov.uk/id/local-authority/30UE,Central Support Services,1009,Health Environment & Neighbourhoods,External Contractor,40198,Miscellaneous Expenses,5034,Additional work on Adlington DHR Final Report following Home Office appraisal,04/11/2015,107217,900.00,Revenue,Maureen Noble,66411
Chorley Borough Council,http://statistics.data.gov.uk/id/local-authority/30UE,Service Management & Support,1009,Streetscene & Leisure Contracts,Supplies-Grounds Maintenance,40025,"Equipment, Furniture & Materia",5023,10 tonne of Mushroom compost,19/11/2015,107476,280.50,Revenue,Mc & Ma Stewart (Haulage Ltd),16627
Chorley Borough Council,http://statistics.data.gov.uk/id/local-authority/30UE,Capital,Capital,Streetscene & Leisure Contracts,Main Contractor,3007,Capital Expenditure,Capital,20 ton of Ultra-tec delivered to Birchfield 20 ton of Ultra - tec delivered to Bengal St,19/11/2015,107479,755.82,Capital,Mc & Ma Stewart (Haulage Ltd),16627
Chorley Borough Council,http://statistics.data.gov.uk/id/local-authority/30UE,Capital,Capital,Streetscene & Leisure Contracts,Equipment,3014,Capital Expenditure,Capital,240 litre wheeled bin. Colour GREEN with Chorley Council logo,27/11/2015,107850,"9,172.80",Capital,MGB Plastics Ltd,18624
Chorley Borough Council,http://statistics.data.gov.uk/id/local-authority/30UE,Capital,Capital,Streetscene & Leisure Contracts,Equipment,3014,Capital Expenditure,Capital,240 litre wheeled bin Colour BROWN with Chorley Council logo,27/11/2015,107895,"9,172.80",Capital,MGB Plastics Ltd,18624
Chorley Borough Council,http://statistics.data.gov.uk/id/local-authority/30UE,Service Management & Support,1009,Streetscene & Leisure Contracts,Supplies-Highways,40026,"Equipment, Furniture & Materia",5023,"LOWER HILL DRIVE @  24.48 THE WARINGS � T � (no through road)@  28.44 TOWN LANE @  19.92 ",19/11/2015,107459,358.06,Revenue,Midland Signs (Leicester) Ltd,16606
Chorley Borough Council,http://statistics.data.gov.uk/id/local-authority/30UE,Business Support,1095,Economic Development,Miscellaneous Expenses,40200,Miscellaneous Expenses,5034,PA1 PA6 to take place 7th & 8th December 2015 at Millhouse Training in Skem for day 1 and at Bengal Street for Day 2,27/11/2015,107864,425.00,Revenue,Millhouse Training Ltd,66703
Chorley Borough Council,http://statistics.data.gov.uk/id/local-authority/30UE,Capital,Capital,Housing,Grants,3002,Capital Expenditure,Capital,ADDRESS REDACTED,04/11/2015,107213,"3,595.67",Capital,Mint Northwest Ltd,65607
Chorley Borough Council,http://statistics.data.gov.uk/id/local-authority/30UE,Capital,Capital,Housing,Grants,3002,Capital Expenditure,Capital,ADDRESS REDACTED,19/11/2015,107686,"3,392.43",Capital,Mint Northwest Ltd,65607
Chorley Borough Council,http://statistics.data.gov.uk/id/local-authority/30UE,Private Sector HSG Renewal,1073,Housing,External Contractor,40198,Miscellaneous Expenses,5034,ADDRESS REDACTED,19/11/2015,107643,420.00,Revenue,Mobility Care Services,70841
Chorley Borough Council,http://statistics.data.gov.uk/id/local-authority/30UE,Private Sector HSG Renewal,1073,Housing,External Contractor,40198,Miscellaneous Expenses,5034,ADDRESS REDACTED,19/11/2015,107655,420.00,Revenue,Mobility Care Services,70841
Chorley Borough Council,http://statistics.data.gov.uk/id/local-authority/30UE,Private Sector HSG Renewal,1073,Housing,External Contractor,40198,Miscellaneous Expenses,5034,ADDRESS REDACTED,19/11/2015,107668,250.00,Revenue,Mobility Care Services,70841
Chorley Borough Council,http://statistics.data.gov.uk/id/local-authority/30UE,Private Sector HSG Renewal,1073,Housing,External Contractor,40198,Miscellaneous Expenses,5034,ADDRESS REDACTED,19/11/2015,107690,260.00,Revenue,Mobility Care Services,70841
Chorley Borough Council,http://statistics.data.gov.uk/id/local-authority/30UE,Private Sector HSG Renewal,1073,Housing,External Contractor,40198,Miscellaneous Expenses,5034,ADDRESS REDACTED,19/11/2015,107691,440.00,Revenue,Mobility Care Services,70841
Chorley Borough Council,http://statistics.data.gov.uk/id/local-authority/30UE,Private Sector HSG Renewal,1073,Housing,External Contractor,40198,Miscellaneous Expenses,5034,ADDRESS REDACTED,19/11/2015,107697,620.00,Revenue,Mobility Care Services,70841
Chorley Borough Council,http://statistics.data.gov.uk/id/local-authority/30UE,Private Sector HSG Renewal,1073,Housing,External Contractor,40198,Miscellaneous Expenses,5034,ADDRESS REDACTED,19/11/2015,107702,460.00,Revenue,Mobility Care Services,70841
Chorley Borough Council,http://statistics.data.gov.uk/id/local-authority/30UE,Private Sector HSG Renewal,1073,Housing,External Contractor,40198,Miscellaneous Expenses,5034,ADDRESS REDACTED,19/11/2015,107705,500.00,Revenue,Mobility Care Services,70841
Chorley Borough Council,http://statistics.data.gov.uk/id/local-authority/30UE,Democratic Represent and  Mgnt,1007,Streetscene & Leisure Contracts,External Contractor,40198,Miscellaneous Expenses,5034,"Works to Crosse Hall Allotment to remove old shrubbery and fence, install new fence and kerb edge, top soil and resurface",27/11/2015,107732,979.00,Revenue,Mr Andy Hart,72236
Chorley Borough Council,http://statistics.data.gov.uk/id/local-authority/30UE,Democratic Represent and  Mgnt,1007,Streetscene & Leisure Contracts,External Contractor,40198,Miscellaneous Expenses,5034,materials,27/11/2015,107732,"1,131.00",Revenue,Mr Andy Hart,72236
Chorley Borough Council,http://statistics.data.gov.uk/id/local-authority/30UE,Service Management & Support,1009,Streetscene & Leisure Contracts,Supplies-Grounds Maintenance,40025,"Equipment, Furniture & Materia",5023,Works completed at Chorley Cemetery,27/11/2015,107868,892.00,Revenue,Mr Andy Hart,72236
Chorley Borough Council,http://statistics.data.gov.uk/id/local-authority/30UE,Service Management & Support,1009,Streetscene & Leisure Contracts,Supplies-Grounds Maintenance,40025,"Equipment, Furniture & Materia",5023,materials,27/11/2015,107868,608.50,Revenue,Mr Andy Hart,72236
Chorley Borough Council,http://statistics.data.gov.uk/id/local-authority/30UE,Business Support,1095,Economic Development,Grants To Other Organisations,40127,Grants and Subscriptions,5031,,11/11/2015,107361,"5,000.00",Revenue,Hallmark Chorley,72503
Chorley Borough Council,http://statistics.data.gov.uk/id/local-authority/30UE,Business Support,1095,Economic Development,Grants To Other Organisations,40127,Grants and Subscriptions,5031,,11/11/2015,107361,"2,612.97",Revenue,Hallmark Chorley,72503
Chorley Borough Council,http://statistics.data.gov.uk/id/local-authority/30UE,Business Support,1095,Economic Development,Grants To Other Organisations,40127,Grants and Subscriptions,5031,subsidy,04/11/2015,107210,400.00,Revenue,Bay Leaf Indian Restaurant,71750
Chorley Borough Council,http://statistics.data.gov.uk/id/local-authority/30UE,Private Sector HSG Renewal,1073,Housing,Miscellaneous Expenses,40200,Miscellaneous Expenses,5034,Provision of Energy Switching Support Services (funded through LCC Affordable Warmth Fund) in November 2015,30/11/2015,107976,900.00,Revenue,NAME REDACTED,65606
Chorley Borough Council,http://statistics.data.gov.uk/id/local-authority/30UE,Unapportionable Central OHeads,1009,Policy & Performance,Publications,40054,"Printing, Stationery & General",5026,"11,000 copies of What`s Happening magazine November 2015-February 2016",04/11/2015,107225,"1,800.00",Revenue,N B Colour Print Ltd,17917
Chorley Borough Council,http://statistics.data.gov.uk/id/local-authority/30UE,Unapportionable Central OHeads,1009,Chief Executives Office,Postages,40082,Communication and Computing,5028,"Quarterly Rental on 1 NFS330 Franking Machine, Serial Number NE8002360/DA1243567448 and 1 2kg scales. April 2015",06/11/2015,107324,631.50,Revenue,Nationwide Capital Finance Ltd,21739
Chorley Borough Council,http://statistics.data.gov.uk/id/local-authority/30UE,Service Management & Support,1009,Streetscene & Leisure Contracts,Refuse Collection,20037,Cleaning and Domestic Supplies,5012,Exchange of street cleaning waste skip 20 yard skip and 35yard skip  at price quoted removed from Bengal St depot ,25/11/2015,106696,"1,028.16",Revenue,Neales Waste Management,17583
Chorley Borough Council,http://statistics.data.gov.uk/id/local-authority/30UE,Service Management & Support,1009,Streetscene & Leisure Contracts,Refuse Collection,20037,Cleaning and Domestic Supplies,5012,Tonnage of green waste 35yard skip at price quoted removed from Bengal St depot Please use this order from ,25/11/2015,106696,"1,034.21",Revenue,Neales Waste Management,17583
Chorley Borough Council,http://statistics.data.gov.uk/id/local-authority/30UE,Central Support Services,1009,Health Environment & Neighbourhoods,Miscellaneous Expenses,40200,Miscellaneous Expenses,5034,Supply 35 yard skip for community clean up on Saturday 17th October 2015 Delvier at 8.30 am at White Horse car park ,19/11/2015,107582,742.64,Revenue,Neales Waste Management,17583
Chorley Borough Council,http://statistics.data.gov.uk/id/local-authority/30UE,Central Support Services,1009,Health Environment & Neighbourhoods,Miscellaneous Expenses,40200,Miscellaneous Expenses,5034,"35 yard skip as previous on Saturday 31st October 2015 to Longacre, Clayton Brook PR5 8HE Deliver 8.30am Collect",19/11/2015,107583,835.92,Revenue,Neales Waste Management,17583
Chorley Borough Council,http://statistics.data.gov.uk/id/local-authority/30UE,Business Support,1095,Governance,Refuse Collection,20037,Cleaning and Domestic Supplies,5012, Skip exchange 35 cubic yard skip from COMPACTOR. Market Walk Yard 1,25/11/2015,107584,"2,466.25",Revenue,Neales Waste Management,17583
Chorley Borough Council,http://statistics.data.gov.uk/id/local-authority/30UE,Service Management & Support,1009,Streetscene & Leisure Contracts,Refuse Collection,20037,Cleaning and Domestic Supplies,5012,Exchange of street cleaning waste skip 20 yard skip and 35yard skip  at price quoted removed from Bengal St depot ,25/11/2015,107589,"1,754.95",Revenue,Neales Waste Management,17583
Chorley Borough Council,http://statistics.data.gov.uk/id/local-authority/30UE,Service Management & Support,1009,Streetscene & Leisure Contracts,Refuse Collection,20037,Cleaning and Domestic Supplies,5012,Exchange of green waste 30 yard skip at price quoted removed from Bengal St depot Please use this order from ,25/11/2015,107589,140.00,Revenue,Neales Waste Management,17583
Chorley Borough Council,http://statistics.data.gov.uk/id/local-authority/30UE,Service Management & Support,1009,Streetscene & Leisure Contracts,Refuse Collection,20037,Cleaning and Domestic Supplies,5012,Tonnage of green waste 35yard skip at price quoted removed from Bengal St depot Please use this order from,25/11/2015,107589,"1,068.81",Revenue,Neales Waste Management,17583
Chorley Borough Council,http://statistics.data.gov.uk/id/local-authority/30UE,Business Support,1095,Streetscene & Leisure Contracts,Refuse Collection,20037,Cleaning and Domestic Supplies,5012,Skip exchanges for General waste FEL Market Walk yards 2 and 3. 8 cubic Yard FEL.,25/11/2015,107618,850.00,Revenue,Neales Waste Management,17583
Chorley Borough Council,http://statistics.data.gov.uk/id/local-authority/30UE,Business Support,1095,Streetscene & Leisure Contracts,Refuse Collection,20037,Cleaning and Domestic Supplies,5012,Disposal costs for waste from the Compactor skip Market Walk yard 1. Price per tonne.,25/11/2015,107619,325.00,Revenue,Neales Waste Management,17583
Chorley Borough Council,http://statistics.data.gov.uk/id/local-authority/30UE,Economic Development,1096,Economic Development,Professional Fees,40063,Services,5027,"Technical Designs for Steeley Lane Area projects  6,420 plus VAT",13/11/2015,107422,"1,280.00",Revenue,Newground CIC,22064
Chorley Borough Council,http://statistics.data.gov.uk/id/local-authority/30UE,Unapportionable Central OHeads,1009,Governance,Laundry,40042,"Clothing, Uniforms and Laundry",5025,town hall laundry service,25/11/2015,107760,372.00,Revenue,North West Ironing & Laundry Centre,20450
Chorley Borough Council,http://statistics.data.gov.uk/id/local-authority/30UE,Unapportionable Central OHeads,1009,Governance,Laundry,40042,"Clothing, Uniforms and Laundry",5025,town hall laundry service,25/11/2015,107761,296.00,Revenue,North West Ironing & Laundry Centre,20450
Chorley Borough Council,http://statistics.data.gov.uk/id/local-authority/30UE,Service Management & Support,1009,Streetscene & Leisure Contracts,Vehicle Maintenance,30045,Direct Transport Costs,5016,Supply Poly sweeping brushes for Swingo 250,25/11/2015,107576,257.22,Revenue,Northern Municipal Spares Ltd,17752
Chorley Borough Council,http://statistics.data.gov.uk/id/local-authority/30UE,Service Management & Support,1009,Streetscene & Leisure Contracts,Vehicle Maintenance,30045,Direct Transport Costs,5016,Supply box of green wide sweep sections for Johnston VT651,25/11/2015,107576,56.07,Revenue,Northern Municipal Spares Ltd,17752
Chorley Borough Council,http://statistics.data.gov.uk/id/local-authority/30UE,Service Management & Support,1009,Streetscene & Leisure Contracts,Vehicle Maintenance,30045,Direct Transport Costs,5016,Blue Brushes,25/11/2015,107576,379.26,Revenue,Northern Municipal Spares Ltd,17752
Chorley Borough Council,http://statistics.data.gov.uk/id/local-authority/30UE,Service Management & Support,1009,Streetscene & Leisure Contracts,Vehicle Maintenance,30045,Direct Transport Costs,5016,wire chanel brush,25/11/2015,107576,228.00,Revenue,Northern Municipal Spares Ltd,17752
Chorley Borough Council,http://statistics.data.gov.uk/id/local-authority/30UE,Service Management & Support,1009,Streetscene & Leisure Contracts,Hire Of Transport,30028,Contrct Hire & Operating Lease,5018,Hire of Ford Transit crewcab tipper NK13YPT 30/04/2015 - 31/03/2016,19/11/2015,106564,492.86,Revenue,Northgate Vehicle Hire (NW) Ltd,17360
Chorley Borough Council,http://statistics.data.gov.uk/id/local-authority/30UE,Service Management & Support,1009,Streetscene & Leisure Contracts,Hire Of Transport,30028,Contrct Hire & Operating Lease,5018,Hire of Ford Transit crewcab tipper NL12OFG  30/04/2015 - 31/03/2016,19/11/2015,106564,505.71,Revenue,Northgate Vehicle Hire (NW) Ltd,17360
Chorley Borough Council,http://statistics.data.gov.uk/id/local-authority/30UE,Service Management & Support,1009,Streetscene & Leisure Contracts,Hire Of Transport,30028,Contrct Hire & Operating Lease,5018,Hire of Ford Transit crewcab tipper NL12ONR 30/04/2015 - 31/03/2016,19/11/2015,106564,505.01,Revenue,Northgate Vehicle Hire (NW) Ltd,17360
Chorley Borough Council,http://statistics.data.gov.uk/id/local-authority/30UE,Service Management & Support,1009,Streetscene & Leisure Contracts,Hire Of Transport,30028,Contrct Hire & Operating Lease,5018,Hire of Ford Transit tipper NJ10OVN 30/04/2015 - 31/03/2016,19/11/2015,106564,337.83,Revenue,Northgate Vehicle Hire (NW) Ltd,17360
Chorley Borough Council,http://statistics.data.gov.uk/id/local-authority/30UE,Service Management & Support,1009,Streetscene & Leisure Contracts,Hire Of Transport,30028,Contrct Hire & Operating Lease,5018,Hire of Ford Transit tipper NJ10OTK 30/04/2015 - 31/03/2016,19/11/2015,106564,216.14,Revenue,Northgate Vehicle Hire (NW) Ltd,17360
Chorley Borough Council,http://statistics.data.gov.uk/id/local-authority/30UE,Service Management & Support,1009,Streetscene & Leisure Contracts,Hire Of Transport,30028,Contrct Hire & Operating Lease,5018,Hire of Ford Transit tipper NJ60KFK 30/04/2015 - 31/03/2016,19/11/2015,106564,394.29,Revenue,Northgate Vehicle Hire (NW) Ltd,17360
Chorley Borough Council,http://statistics.data.gov.uk/id/local-authority/30UE,Service Management & Support,1009,Streetscene & Leisure Contracts,Hire Of Transport,30028,Contrct Hire & Operating Lease,5018,Hire of Ford Transit tipper NK13YNV 30/04/2015 - 31/03/2016,19/11/2015,106564,414.77,Revenue,Northgate Vehicle Hire (NW) Ltd,17360
Chorley Borough Council,http://statistics.data.gov.uk/id/local-authority/30UE,Service Management & Support,1009,Streetscene & Leisure Contracts,Hire Of Transport,30028,Contrct Hire & Operating Lease,5018,Hire of Ford Transit tipper NJ10OXG 1/9-25/9,19/11/2015,106564,350.97,Revenue,Northgate Vehicle Hire (NW) Ltd,17360
Chorley Borough Council,http://statistics.data.gov.uk/id/local-authority/30UE,Service Management & Support,1009,Streetscene & Leisure Contracts,Hire Of Transport,30028,Contrct Hire & Operating Lease,5018,Hire of single cab tipper ND63YEG 1/9-1/10,19/11/2015,106564,400.46,Revenue,Northgate Vehicle Hire (NW) Ltd,17360
Chorley Borough Council,http://statistics.data.gov.uk/id/local-authority/30UE,Democratic Represent and  Mgnt,1007,Governance,Electricity,20013,Energy Costs,5006,Energy Costs,06/11/2015,107348,-4.60,Revenue,Npower Commercial Gas,16814
Chorley Borough Council,http://statistics.data.gov.uk/id/local-authority/30UE,Democratic Represent and  Mgnt,1007,Governance,Electricity,20013,Energy Costs,5006,Energy Costs,06/11/2015,107348,-3.52,Revenue,Npower Commercial Gas,16814
Chorley Borough Council,http://statistics.data.gov.uk/id/local-authority/30UE,Democratic Represent and  Mgnt,1007,Governance,Electricity,20013,Energy Costs,5006,Energy Costs,06/11/2015,107348,-1.54,Revenue,Npower Commercial Gas,16814
Chorley Borough Council,http://statistics.data.gov.uk/id/local-authority/30UE,Democratic Represent and  Mgnt,1007,Governance,Electricity,20013,Energy Costs,5006,Energy Costs,06/11/2015,107348,-6.34,Revenue,Npower Commercial Gas,16814
Chorley Borough Council,http://statistics.data.gov.uk/id/local-authority/30UE,Democratic Represent and  Mgnt,1007,Governance,Electricity,20013,Energy Costs,5006,Energy Costs,06/11/2015,107348,-5.76,Revenue,Npower Commercial Gas,16814
Chorley Borough Council,http://statistics.data.gov.uk/id/local-authority/30UE,Democratic Represent and  Mgnt,1007,Governance,Electricity,20013,Energy Costs,5006,Energy Costs,06/11/2015,107348,-6.33,Revenue,Npower Commercial Gas,16814
Chorley Borough Council,http://statistics.data.gov.uk/id/local-authority/30UE,Democratic Represent and  Mgnt,1007,Governance,Electricity,20013,Energy Costs,5006,Energy Costs,06/11/2015,107348,15.37,Revenue,Npower Commercial Gas,16814
Chorley Borough Council,http://statistics.data.gov.uk/id/local-authority/30UE,Democratic Represent and  Mgnt,1007,Governance,Electricity,20013,Energy Costs,5006,Energy Costs,06/11/2015,107348,47.59,Revenue,Npower Commercial Gas,16814
Chorley Borough Council,http://statistics.data.gov.uk/id/local-authority/30UE,Democratic Represent and  Mgnt,1007,Governance,Electricity,20013,Energy Costs,5006,Energy Costs,06/11/2015,107348,40.71,Revenue,Npower Commercial Gas,16814
Chorley Borough Council,http://statistics.data.gov.uk/id/local-authority/30UE,Democratic Represent and  Mgnt,1007,Governance,Electricity,20013,Energy Costs,5006,Energy Costs,06/11/2015,107348,27.70,Revenue,Npower Commercial Gas,16814
Chorley Borough Council,http://statistics.data.gov.uk/id/local-authority/30UE,Democratic Represent and  Mgnt,1007,Governance,Electricity,20013,Energy Costs,5006,Energy Costs,06/11/2015,107348,14.93,Revenue,Npower Commercial Gas,16814
Chorley Borough Council,http://statistics.data.gov.uk/id/local-authority/30UE,Democratic Represent and  Mgnt,1007,Governance,Electricity,20013,Energy Costs,5006,Energy Costs,06/11/2015,107348,46.62,Revenue,Npower Commercial Gas,16814
Chorley Borough Council,http://statistics.data.gov.uk/id/local-authority/30UE,Democratic Represent and  Mgnt,1007,Governance,Electricity,20013,Energy Costs,5006,Energy Costs,06/11/2015,107348,46.16,Revenue,Npower Commercial Gas,16814
Chorley Borough Council,http://statistics.data.gov.uk/id/local-authority/30UE,Democratic Represent and  Mgnt,1007,Governance,Electricity,20013,Energy Costs,5006,Energy Costs,06/11/2015,107348,46.73,Revenue,Npower Commercial Gas,16814
Chorley Borough Council,http://statistics.data.gov.uk/id/local-authority/30UE,Democratic Represent and  Mgnt,1007,Governance,Electricity,20013,Energy Costs,5006,Energy Costs,06/11/2015,107348,30.73,Revenue,Npower Commercial Gas,16814
Chorley Borough Council,http://statistics.data.gov.uk/id/local-authority/30UE,Business Support,1095,Governance,Electricity,20013,Energy Costs,5006,Energy Costs,06/11/2015,107348,"2,003.29",Revenue,Npower Commercial Gas,16814
Chorley Borough Council,http://statistics.data.gov.uk/id/local-authority/30UE,Democratic Represent and  Mgnt,1007,Governance,Electricity,20013,Energy Costs,5006,Energy Costs,06/11/2015,107348,39.57,Revenue,Npower Commercial Gas,16814
Chorley Borough Council,http://statistics.data.gov.uk/id/local-authority/30UE,Democratic Represent and  Mgnt,1007,Governance,Electricity,20013,Energy Costs,5006,Energy Costs,06/11/2015,107348,251.12,Revenue,Npower Commercial Gas,16814
Chorley Borough Council,http://statistics.data.gov.uk/id/local-authority/30UE,Democratic Represent and  Mgnt,1007,Governance,Electricity,20013,Energy Costs,5006,Energy Costs,06/11/2015,107348,31.02,Revenue,Npower Commercial Gas,16814
Chorley Borough Council,http://statistics.data.gov.uk/id/local-authority/30UE,Service Management & Support,1009,Governance,Electricity,20013,Energy Costs,5006,Energy Costs,06/11/2015,107348,14.96,Revenue,Npower Commercial Gas,16814
Chorley Borough Council,http://statistics.data.gov.uk/id/local-authority/30UE,Democratic Represent and  Mgnt,1007,Governance,Electricity,20013,Energy Costs,5006,Energy Costs,06/11/2015,107348,11.62,Revenue,Npower Commercial Gas,16814
Chorley Borough Council,http://statistics.data.gov.uk/id/local-authority/30UE,Economic Development,1096,Governance,Electricity,20013,Energy Costs,5006,Energy Costs,06/11/2015,107348,"2,643.38",Revenue,Npower Commercial Gas,16814
Chorley Borough Council,http://statistics.data.gov.uk/id/local-authority/30UE,Democratic Represent and  Mgnt,1007,Governance,Electricity,20013,Energy Costs,5006,Energy Costs,06/11/2015,107348,333.04,Revenue,Npower Commercial Gas,16814
Chorley Borough Council,http://statistics.data.gov.uk/id/local-authority/30UE,Community Development,1097,Governance,Electricity,20013,Energy Costs,5006,Energy Costs,06/11/2015,107348,244.70,Revenue,Npower Commercial Gas,16814
Chorley Borough Council,http://statistics.data.gov.uk/id/local-authority/30UE,Community Development,1097,Governance,Electricity,20013,Energy Costs,5006,Energy Costs,06/11/2015,107348,131.69,Revenue,Npower Commercial Gas,16814
Chorley Borough Council,http://statistics.data.gov.uk/id/local-authority/30UE,Democratic Represent and  Mgnt,1007,Governance,Electricity,20013,Energy Costs,5006,Energy Costs,06/11/2015,107348,30.38,Revenue,Npower Commercial Gas,16814
Chorley Borough Council,http://statistics.data.gov.uk/id/local-authority/30UE,Democratic Represent and  Mgnt,1007,Governance,Electricity,20013,Energy Costs,5006,Energy Costs,06/11/2015,107348,290.14,Revenue,Npower Commercial Gas,16814
Chorley Borough Council,http://statistics.data.gov.uk/id/local-authority/30UE,Democratic Represent and  Mgnt,1007,Governance,Electricity,20013,Energy Costs,5006,Energy Costs,06/11/2015,107348,198.54,Revenue,Npower Commercial Gas,16814
Chorley Borough Council,http://statistics.data.gov.uk/id/local-authority/30UE,Corporate Management,1008,Governance,Electricity,20013,Energy Costs,5006,Energy Costs,06/11/2015,107348,9.15,Revenue,Npower Commercial Gas,16814
Chorley Borough Council,http://statistics.data.gov.uk/id/local-authority/30UE,Corporate Management,1008,Governance,Electricity,20013,Energy Costs,5006,Energy Costs,06/11/2015,107348,100.76,Revenue,Npower Commercial Gas,16814
Chorley Borough Council,http://statistics.data.gov.uk/id/local-authority/30UE,Unapportionable Central OHeads,1009,Governance,Electricity,20013,Energy Costs,5006,Energy Costs,06/11/2015,107348,"2,881.24",Revenue,Npower Commercial Gas,16814
Chorley Borough Council,http://statistics.data.gov.uk/id/local-authority/30UE,Unapportionable Central OHeads,1009,Governance,Electricity,20013,Energy Costs,5006,Energy Costs,06/11/2015,107348,678.04,Revenue,Npower Commercial Gas,16814
Chorley Borough Council,http://statistics.data.gov.uk/id/local-authority/30UE,Unapportionable Central OHeads,1009,Governance,Electricity,20013,Energy Costs,5006,Energy Costs,06/11/2015,107348,"1,483.35",Revenue,Npower Commercial Gas,16814
Chorley Borough Council,http://statistics.data.gov.uk/id/local-authority/30UE,Economic Development,1096,Governance,Electricity,20013,Energy Costs,5006,Energy Costs,06/11/2015,107348,9.15,Revenue,Npower Commercial Gas,16814
Chorley Borough Council,http://statistics.data.gov.uk/id/local-authority/30UE,Homelessness,1075,Governance,Electricity,20013,Energy Costs,5006,Energy Costs,06/11/2015,107348,"1,084.62",Revenue,Npower Commercial Gas,16814
Chorley Borough Council,http://statistics.data.gov.uk/id/local-authority/30UE,Parking Services,1066,Governance,Electricity,20013,Energy Costs,5006,Energy Costs,27/11/2015,107809,1.03,Revenue,Npower Commercial Gas,16814
Chorley Borough Council,http://statistics.data.gov.uk/id/local-authority/30UE,Parking Services,1066,Governance,Electricity,20013,Energy Costs,5006,Energy Costs,27/11/2015,107809,103.28,Revenue,Npower Commercial Gas,16814
Chorley Borough Council,http://statistics.data.gov.uk/id/local-authority/30UE,Culture & Heritage,1036,Governance,Electricity,20013,Energy Costs,5006,Energy Costs,27/11/2015,107809,255.51,Revenue,Npower Commercial Gas,16814
Chorley Borough Council,http://statistics.data.gov.uk/id/local-authority/30UE,Parking Services,1066,Streetscene & Leisure Contracts,External Contractors,50008,Private Contractors,5042,"�Provision of off street car park enforcement, cash collection, cash counting facilities and third party bulk cash collections�",04/11/2015,107268,"3,844.63",Revenue,NSL Limited,67253
Chorley Borough Council,http://statistics.data.gov.uk/id/local-authority/30UE,Corporate Management,1008,Health Environment & Neighbourhoods,Training Course Fees,17010,Indirect Employee Expenses,5002,Introduction to Childcare Sessions - x4 on 14 and 15 July 2015 Chorley Council Town Hall,25/11/2015,107730,"1,983.47",Revenue,NSPCC,21641
Chorley Borough Council,http://statistics.data.gov.uk/id/local-authority/30UE,Business Support,1095,Governance,Electricity,20013,Energy Costs,5006,,13/11/2015,107309,"1,077.67",Revenue,Opus Energy Ltd,65093
Chorley Borough Council,http://statistics.data.gov.uk/id/local-authority/30UE,Corporate Management,1008,Health Environment & Neighbourhoods,Works In Default,40199,Miscellaneous Expenses,5034,Works to supply and fit chamber and pump to divert misconnected drainage connection to gully on rear corner of house ,27/11/2015,107833,"1,240.00",Revenue,P Cowley Groundworks,72662
Chorley Borough Council,http://statistics.data.gov.uk/id/local-authority/30UE,Unapportionable Central OHeads,1009,Policy & Performance,Publications,40054,"Printing, Stationery & General",5026,Six credits for electronic publications,04/11/2015,107229,600.00,Revenue,PageSuite Ltd,22036
Chorley Borough Council,http://statistics.data.gov.uk/id/local-authority/30UE,Unapportionable Central OHeads,1009,Policy & Performance,ICT Software Implementation,40114,Communication and Computing,5028,Supply of Attain software from 1 October 2015 to 30 September 2016,19/11/2015,107423,"2,220.00",Revenue,Parker Sandford Ltd,61771
Chorley Borough Council,http://statistics.data.gov.uk/id/local-authority/30UE,Economic Development,1096,Governance,Performing Rights Society Fees,40148,Grants and Subscriptions,5031,"Tariff for Chorley Covered Market for CD, Radio-cassette for audible area for period of: 01.04.15 - 31.03.16",27/11/2015,107863,809.30,Revenue,Performing Right Society Ltd,19909
Chorley Borough Council,http://statistics.data.gov.uk/id/local-authority/30UE,Central Support Services,1009,Health Environment & Neighbourhoods,External Contractor,40198,Miscellaneous Expenses,5034,Pest control services from April 1st 2015 up to and inclusive March 31st 2016,04/11/2015,107175,323.83,Revenue,Peter L Johnson,16727
Chorley Borough Council,http://statistics.data.gov.uk/id/local-authority/30UE,Central Support Services,1009,Health Environment & Neighbourhoods,External Contractor,40198,Miscellaneous Expenses,5034,Pest control services from April 1st 2015 up to and inclusive March 31st 2016,19/11/2015,107325,323.83,Revenue,Peter L Johnson,16727
Chorley Borough Council,http://statistics.data.gov.uk/id/local-authority/30UE,Central Support Services,1009,Health Environment & Neighbourhoods,External Contractor,40198,Miscellaneous Expenses,5034,Pest control services from April 1st 2015 up to and inclusive March 31st 2016,19/11/2015,107596,323.83,Revenue,Peter L Johnson,16727
Chorley Borough Council,http://statistics.data.gov.uk/id/local-authority/30UE,Service Management & Support,1009,Streetscene & Leisure Contracts,Diesel/Derv,30007,Direct Transport Costs,5016,Supply 1000 litres of Road diesel to be delivered to Bengal St depot at price quoted,04/11/2015,107224,997.00,Revenue,Pilkington Oils,18075
Chorley Borough Council,http://statistics.data.gov.uk/id/local-authority/30UE,Service Management & Support,1009,Streetscene & Leisure Contracts,Diesel/Derv,30007,Direct Transport Costs,5016,Supply 1000 litres of road diesel to be delivered to Bengal St depot. Please deliver as soon as possible,04/11/2015,107271,998.00,Revenue,Pilkington Oils,18075
Chorley Borough Council,http://statistics.data.gov.uk/id/local-authority/30UE,Business Support,1095,Chief Executives Office,Miscellaneous Expenses,40200,Miscellaneous Expenses,5034,Botany Bay and Great Knowley Masterplan,27/11/2015,107851,"10,475.00",Revenue,Planit IE Limited,62532
Chorley Borough Council,http://statistics.data.gov.uk/id/local-authority/30UE,Business Support,1095,Chief Executives Office,Miscellaneous Expenses,40200,Miscellaneous Expenses,5034,Botany Bay and Great Knowley Masterplan,27/11/2015,107896,"18,750.13",Revenue,Planit IE Limited,62532
Chorley Borough Council,http://statistics.data.gov.uk/id/local-authority/30UE,Unapportionable Central OHeads,1009,Governance,Furniture - Purchase,40012,"Equipment, Furniture & Materia",5023,Panache chairs in Claret OMP623 with chrome frame plus 20 carriage.,19/11/2015,107174,334.40,Revenue,Planscape Business Interiors Ltd,69451
Chorley Borough Council,http://statistics.data.gov.uk/id/local-authority/30UE,Precepts and Collection Fund,Precepts,Shared Service Arrangement,LPA Precept,2010,Precepts & Collection Fund,Precept,Oct,23/11/2015,107772,"559,645.00",Revenue,Police & Crime Commissioner,17438
Chorley Borough Council,http://statistics.data.gov.uk/id/local-authority/30UE,Unapportionable Central OHeads,1009,Governance,Asset Maintenance Fund,20012,Repairs Maintenance & Alts,5005,Lettering for the Lancastrian: Option (i) 10mm thick with resin domed face. Including manufacture and installation.,25/11/2015,106648,686.25,Revenue,Poppy Signs Ltd,21898
Chorley Borough Council,http://statistics.data.gov.uk/id/local-authority/30UE,Corporate Management,1008,Policy & Performance,Promotional Expenses,40159,Miscellaneous Expenses,5034,Installation of The Santa Post Box,19/11/2015,107008,367.30,Revenue,Poppy Signs Ltd,21898
Chorley Borough Council,http://statistics.data.gov.uk/id/local-authority/30UE,Unapportionable Central OHeads,1009,Policy & Performance,Publicity - Advertising,40157,Miscellaneous Expenses,5034,Banners for Chorley Live,25/11/2015,107874,534.91,Revenue,Poppy Signs Ltd,21898
Chorley Borough Council,http://statistics.data.gov.uk/id/local-authority/30UE,Democratic Represent and  Mgnt,1007,Policy & Performance,Supplies-Grounds Maintenance,40025,"Equipment, Furniture & Materia",5023,Hire of 10 portable toilets for the Astley Park bonfire and firework event,04/11/2015,107222,780.00,Revenue,Portable Conveniences Ltd,17556
Chorley Borough Council,http://statistics.data.gov.uk/id/local-authority/30UE,Unapportionable Central OHeads,1009,Governance,Refreshments,40036,Catering,5024,council offices water cooler supply and sanitation,25/11/2015,107588,262.80,Revenue,Pressure Coolers Ltd T/A Maestro International Ltd,19767
Chorley Borough Council,http://statistics.data.gov.uk/id/local-authority/30UE,Private Sector HSG Renewal,1073,Housing,Miscellaneous Expenses,40200,Miscellaneous Expenses,5034,"Materials for draught-proofing and miscellaneous items relating to the `Warm Homes Check`, to be carried out under ",11/11/2015,107491,"1,200.00",Revenue,Preston Care and Repair,50018
Chorley Borough Council,http://statistics.data.gov.uk/id/local-authority/30UE,Elections,1012,Governance,Postages,40082,Communication and Computing,5028,ITR postage for final stage of canvass x 4122 itr applciations,25/11/2015,107557,985.81,Revenue,Print Image Facilities LLP,57870
Chorley Borough Council,http://statistics.data.gov.uk/id/local-authority/30UE,Elections,1012,Governance,Printing,40043,"Printing, Stationery & General",5026,Polling Station Ballot Books/tendered ballot books,19/11/2015,107262,795.00,Revenue,Print Image Network,21171
Chorley Borough Council,http://statistics.data.gov.uk/id/local-authority/30UE,Elections,1012,Governance,Printing,40043,"Printing, Stationery & General",5026,"Euxton North By Election Poll Cards - A5 approx. quantity 2436Postal Poll Cards A5 approx. quantity 1114",19/11/2015,107333,855.00,Revenue,Print Image Network,21171
Chorley Borough Council,http://statistics.data.gov.uk/id/local-authority/30UE,Elections,1012,Governance,Printing,40043,"Printing, Stationery & General",5026,Euxton North Postal Vote Packs approx. 1164 (including blanks),19/11/2015,107657,"1,526.92",Revenue,Print Image Network,21171
Chorley Borough Council,http://statistics.data.gov.uk/id/local-authority/30UE,Elections,1012,Governance,Printing,40043,"Printing, Stationery & General",5026,2nd reminder ITR`s x 4122,27/11/2015,107949,922.45,Revenue,Print Image Network,21171
Chorley Borough Council,http://statistics.data.gov.uk/id/local-authority/30UE,Central Support Services,1009,Health Environment & Neighbourhoods,Sports Development Initiatives,40186,Miscellaneous Expenses,5034,Sport development,25/11/2015,107763,"1,050.00",Revenue,Quest & NBS,58662
Chorley Borough Council,http://statistics.data.gov.uk/id/local-authority/30UE,Central Support Services,1009,Health Environment & Neighbourhoods,Tools & Equipment - Purchase,40003,"Equipment, Furniture & Materia",5023,Relocation of Town Centre Radio mast/aerial from police station to town hall,11/11/2015,107370,695.00,Revenue,Radio Service,21618
Chorley Borough Council,http://statistics.data.gov.uk/id/local-authority/30UE,Democratic Represent and  Mgnt,1007,Streetscene & Leisure Contracts,Exhibitions,40176,Miscellaneous Expenses,5034,"Inscribing additional inscription on Astley Park War Memorial -  Addendum, Ralph G432.00 including vavat",13/11/2015,107487,360.00,Revenue,Rawcliffe`s Of Chorley Ltd,17993
Chorley Borough Council,http://statistics.data.gov.uk/id/local-authority/30UE,Control Accounts,Control,HR & Org. Development,General Balances,100,Balance Sheet,Balance,,23/11/2015,106523,"5,514.68",Revenue,Reward Gateway (UK) Ltd,66814
Chorley Borough Council,http://statistics.data.gov.uk/id/local-authority/30UE,Control Accounts,Control,HR & Org. Development,General Balances,100,Balance Sheet,Balance,childcare vouchers,23/11/2015,107432,"5,118.68",Revenue,Reward Gateway (UK) Ltd,66814
Chorley Borough Council,http://statistics.data.gov.uk/id/local-authority/30UE,Elections,1012,Governance,Postages,40082,Communication and Computing,5028,Response services,19/11/2015,107354,"1,240.93",Revenue,Royal Mail Group Plc,17522
Chorley Borough Council,http://statistics.data.gov.uk/id/local-authority/30UE,Elections,1012,Governance,Postages,40082,Communication and Computing,5028,Business reply mail from April 2015 - March 2016 for RRHA KZCB CAXA,19/11/2015,107398,"1,047.00",Revenue,Royal Mail Group Plc,17522
Chorley Borough Council,http://statistics.data.gov.uk/id/local-authority/30UE,Homelessness,1075,Housing,External Contractor,40198,Miscellaneous Expenses,5034,"Concierge Service at Cotswold Supported Housing, Cotswold Road, Chorley, Lancashire, PR7 3HW.",30/11/2015,107335,"2,101.48",Revenue,Sector Security Services,19269
Chorley Borough Council,http://statistics.data.gov.uk/id/local-authority/30UE,Homelessness,1075,Housing,External Contractor,40198,Miscellaneous Expenses,5034,"Concierge Service at Cotswold Supported Housing, Cotswold Road, Chorley, Lancashire, PR7 3HW. ",30/11/2015,107570,"2,133.40",Revenue,Sector Security Services,19269
Chorley Borough Council,http://statistics.data.gov.uk/id/local-authority/30UE,Business Support,1095,Economic Development,Security Service,40062,Services,5027,To provide Security Services to MWSC October 2015,04/11/2015,107094,"5,616.02",Revenue,Securitas Security Services (UK) Ltd,70693
Chorley Borough Council,http://statistics.data.gov.uk/id/local-authority/30UE,Business Support,1095,Economic Development,Miscellaneous Expenses,40200,Miscellaneous Expenses,5034,Choose chorley grant,13/11/2015,107296,"15,000.00",Revenue,Service Sport Ltd,65601
Chorley Borough Council,http://statistics.data.gov.uk/id/local-authority/30UE,Service Management & Support,1009,Streetscene & Leisure Contracts,External Contractor,40198,Miscellaneous Expenses,5034,Carryout resurfacing of footpath and instillation of land drain Gillibrand North grassed area as per site meeting 27/10/2015,25/11/2015,107827,"8,238.85",Revenue,Shiloh Surfacing,61457
Chorley Borough Council,http://statistics.data.gov.uk/id/local-authority/30UE,Unapportionable Central OHeads,1009,Policy & Performance,Exhibitions & Special Events,40158,Miscellaneous Expenses,5034,Hire of 25 x radios for Christmas Lights Switch On event,30/11/2015,107950,262.50,Revenue,Sitelink Communications Ltd,53286
Chorley Borough Council,http://statistics.data.gov.uk/id/local-authority/30UE,Service Management & Support,1009,Streetscene & Leisure Contracts,Protective Clothing,40040,"Clothing, Uniforms and Laundry",5025,High Vis Yellow Waterproof trousers.  Product Code = CSR33.  Size = Medium,19/11/2015,107665,72.90,Revenue,Smart Image Workwear,21064
Chorley Borough Council,http://statistics.data.gov.uk/id/local-authority/30UE,Service Management & Support,1009,Streetscene & Leisure Contracts,Protective Clothing,40040,"Clothing, Uniforms and Laundry",5025,High Vis Yellow Waterproof trousers.  Product Code = CSR33.  Size = Large,19/11/2015,107665,72.90,Revenue,Smart Image Workwear,21064
Chorley Borough Council,http://statistics.data.gov.uk/id/local-authority/30UE,Service Management & Support,1009,Streetscene & Leisure Contracts,Protective Clothing,40040,"Clothing, Uniforms and Laundry",5025,High Vis Yellow Waterproof trousers.  Product Code = CSR33.  Size = X Large,19/11/2015,107665,72.90,Revenue,Smart Image Workwear,21064
Chorley Borough Council,http://statistics.data.gov.uk/id/local-authority/30UE,Service Management & Support,1009,Streetscene & Leisure Contracts,Protective Clothing,40040,"Clothing, Uniforms and Laundry",5025,Uneek UC122 Polo Shirt.  Colour Red c/w Chorley Council Logo all white.  Product Code = CSR34.  Size = Medium,19/11/2015,107665,41.00,Revenue,Smart Image Workwear,21064
Chorley Borough Council,http://statistics.data.gov.uk/id/local-authority/30UE,Service Management & Support,1009,Streetscene & Leisure Contracts,Protective Clothing,40040,"Clothing, Uniforms and Laundry",5025,Uneek UC122 Polo Shirt.  Colour Red c/w Chorley Council Logo all white.  Product Code = CSR34.  Size = Large,19/11/2015,107665,41.00,Revenue,Smart Image Workwear,21064
Chorley Borough Council,http://statistics.data.gov.uk/id/local-authority/30UE,Service Management & Support,1009,Streetscene & Leisure Contracts,Protective Clothing,40040,"Clothing, Uniforms and Laundry",5025,Uneek UC122 Polo Shirt.  Colour Red c/w Chorley Council Logo all white.  Product Code = CSR34.  Size = X Large,19/11/2015,107665,41.00,Revenue,Smart Image Workwear,21064
Chorley Borough Council,http://statistics.data.gov.uk/id/local-authority/30UE,Service Management & Support,1009,Streetscene & Leisure Contracts,Protective Clothing,40040,"Clothing, Uniforms and Laundry",5025,Uneek UC203 crew neck sweatshirt.  Colour Red c/w Chorley Council Logo all white.  Product Code = CSR36.  Size = Med,19/11/2015,107665,32.50,Revenue,Smart Image Workwear,21064
Chorley Borough Council,http://statistics.data.gov.uk/id/local-authority/30UE,Service Management & Support,1009,Streetscene & Leisure Contracts,Protective Clothing,40040,"Clothing, Uniforms and Laundry",5025,Uneek UC203 crew neck sweatshirt.  Colour Red c/w Chorley Council Logo all white.  Product Code = CSR36.  Size = Large,19/11/2015,107665,32.50,Revenue,Smart Image Workwear,21064
Chorley Borough Council,http://statistics.data.gov.uk/id/local-authority/30UE,Service Management & Support,1009,Streetscene & Leisure Contracts,Protective Clothing,40040,"Clothing, Uniforms and Laundry",5025,Uneek UC03 crew neck sweatshirt.  Colour Red c/w Chorley Council Logo all white.  Product Code = CSR36.  Size = Xlarge,19/11/2015,107665,32.50,Revenue,Smart Image Workwear,21064
Chorley Borough Council,http://statistics.data.gov.uk/id/local-authority/30UE,Service Management & Support,1009,Streetscene & Leisure Contracts,Protective Clothing,40040,"Clothing, Uniforms and Laundry",5025,"ORN - Hawk Cargo Pants.  Waist 42 inch, Long Leg.  Product Code = CSR38",19/11/2015,107665,38.70,Revenue,Smart Image Workwear,21064
Chorley Borough Council,http://statistics.data.gov.uk/id/local-authority/30UE,Business Support,1095,Economic Development,Miscellaneous Expenses,40200,Miscellaneous Expenses,5034,Breakfast Conference at Bridgewater Hall 16 October 2015,27/11/2015,107867,"1,381.00",Revenue,SMG Europe Holdings Ltd,71644
Chorley Borough Council,http://statistics.data.gov.uk/id/local-authority/30UE,Central Support Services,1009,"Customer, ICT & Transactional",Computer Software-Purchase,40100,Communication and Computing,5028,SocialSignIn for 10 users for a 1 year subscription,04/11/2015,106504,"1,800.00",Revenue,SocialSignIn,72088
Chorley Borough Council,http://statistics.data.gov.uk/id/local-authority/30UE,Central Support Services,1009,"Customer, ICT & Transactional",Computer Software-Purchase,40100,Communication and Computing,5028,SocialSignIn training and setup,04/11/2015,106504,300.00,Revenue,SocialSignIn,72088
Chorley Borough Council,http://statistics.data.gov.uk/id/local-authority/30UE,Corporate Management,1008,Chief Executives Office,Professional Fees,40063,Services,5027,second installment,19/11/2015,107640,"4,869.00",Revenue,SQW Limited,68089
Chorley Borough Council,http://statistics.data.gov.uk/id/local-authority/30UE,Unapportionable Central OHeads,1009,Economic Development,HR Approved Training Expenses,17001,Indirect Employee Expenses,5002,SFEDI accreditation for business advice as part of aspiring managers development.,30/11/2015,107871,"1,500.00",Revenue,St Helier Development & Training Ltd,67973
Chorley Borough Council,http://statistics.data.gov.uk/id/local-authority/30UE,Democratic Represent and  Mgnt,1007,Governance,Processional Routes,40177,Miscellaneous Expenses,5034,"Sound system for Remembrance Sunday on 8th November 2015 at the Cenotaph, Astley Park, Chorley.",11/11/2015,107173,595.00,Revenue,Star Drive Music,16840
Chorley Borough Council,http://statistics.data.gov.uk/id/local-authority/30UE,Community Development,1097,Policy & Performance,Core Funding Grants,40133,Grants and Subscriptions,5031,2nd payment 2015/16 for delivery of a community safety support service,27/11/2015,107876,"3,998.92",Revenue,Street Pastors,21946
Chorley Borough Council,http://statistics.data.gov.uk/id/local-authority/30UE,Capital,Capital,Housing,Grants,3002,Capital Expenditure,Capital,ADDRESS REDACTED,04/11/2015,107211,"1,645.99",Capital,Stringfellow Bldg Cntrctrs Ltd,17893
Chorley Borough Council,http://statistics.data.gov.uk/id/local-authority/30UE,Capital,Capital,Housing,Grants,3002,Capital Expenditure,Capital,Triumph,11/11/2015,107328,"4,260.00",Capital,Stringfellow Bldg Cntrctrs Ltd,17893
Chorley Borough Council,http://statistics.data.gov.uk/id/local-authority/30UE,Capital,Capital,Housing,Grants,3002,Capital Expenditure,Capital,Great Meadow,19/11/2015,107329,"9,920.00",Capital,Stringfellow Bldg Cntrctrs Ltd,17893
Chorley Borough Council,http://statistics.data.gov.uk/id/local-authority/30UE,Unapportionable Central OHeads,1009,Governance,General Repairs - Reactive,20004,Repairs Maintenance & Alts,5005,Blanket reactive Aug-Dec 2015.,19/11/2015,107414,643.25,Revenue,Stringfellow Bldg Cntrctrs Ltd,17893
Chorley Borough Council,http://statistics.data.gov.uk/id/local-authority/30UE,Capital,Capital,Housing,Grants,3002,Capital Expenditure,Capital,4 Riverside,19/11/2015,107500,"7,690.00",Capital,Stringfellow Bldg Cntrctrs Ltd,17893
Chorley Borough Council,http://statistics.data.gov.uk/id/local-authority/30UE,Unapportionable Central OHeads,1009,Governance,General Repairs - Reactive,20004,Repairs Maintenance & Alts,5005,Blanket reactive Aug-Dec 2015.,19/11/2015,107546,"1,945.00",Revenue,Stringfellow Bldg Cntrctrs Ltd,17893
Chorley Borough Council,http://statistics.data.gov.uk/id/local-authority/30UE,Unapportionable Central OHeads,1009,Governance,General Repairs - Reactive,20004,Repairs Maintenance & Alts,5005,Blanket reactive Aug-Dec 2015.,19/11/2015,107547,310.75,Revenue,Stringfellow Bldg Cntrctrs Ltd,17893
Chorley Borough Council,http://statistics.data.gov.uk/id/local-authority/30UE,Capital,Capital,Governance,Main Contractor,3007,Capital Expenditure,Capital,Works to High Street Car Park as per quotation and instruction Order 6831.,25/11/2015,107568,"16,232.00",Capital,Stringfellow Bldg Cntrctrs Ltd,17893
Chorley Borough Council,http://statistics.data.gov.uk/id/local-authority/30UE,Capital,Capital,Housing,Grants,3002,Capital Expenditure,Capital,ADDRESS REDACTED,27/11/2015,107915,770.00,Capital,Stringfellow Bldg Cntrctrs Ltd,17893
Chorley Borough Council,http://statistics.data.gov.uk/id/local-authority/30UE,Capital,Capital,Streetscene & Leisure Contracts,Main Contractor,3007,Capital Expenditure,Capital,Ground Investigation Work at Yarrow Valley Country Park in accordance with Quotation E1349,27/11/2015,107678,695.00,Capital,Sub Surface North West Limited,55367
Chorley Borough Council,http://statistics.data.gov.uk/id/local-authority/30UE,Capital,Capital,Streetscene & Leisure Contracts,Surveyors Fees,3021,Capital Expenditure,Capital,Topographical survey of Coronation Recreation Ground as per quote 15J158.,25/11/2015,107718,"1,050.00",Capital,Survey Operations Ltd,55910
Chorley Borough Council,http://statistics.data.gov.uk/id/local-authority/30UE,Economic Development,1096,Governance,Cleaning Materials,40019,"Equipment, Furniture & Materia",5023,Cleaning products for the covered market.,13/11/2015,107527,414.79,Revenue,Swiftkleen Ltd,17933
Chorley Borough Council,http://statistics.data.gov.uk/id/local-authority/30UE,Economic Development,1096,Governance,Cleaning Materials,40019,"Equipment, Furniture & Materia",5023,Janitorial products for the covered market.,30/11/2015,107974,352.02,Revenue,Swiftkleen Ltd,17933
Chorley Borough Council,http://statistics.data.gov.uk/id/local-authority/30UE,Democratic Represent and  Mgnt,1007,Streetscene & Leisure Contracts,Grounds Maintenance Contractor,20043,Grounds Maintenance Costs,5013,Cutting and baling and removal of bales from Blainscough Wood Nature Reserve Coppull in September 15.,11/11/2015,106978,600.00,Revenue,T & L Kirkham,17058
Chorley Borough Council,http://statistics.data.gov.uk/id/local-authority/30UE,Democratic Represent and  Mgnt,1007,Streetscene & Leisure Contracts,Grounds Maintenance Contractor,20043,Grounds Maintenance Costs,5013,"Cutting, bailing and removal of bales from Valley Bottoms (Parkers in Field) in September 15.",11/11/2015,106979,"1,100.00",Revenue,T & L Kirkham,17058
Chorley Borough Council,http://statistics.data.gov.uk/id/local-authority/30UE,Democratic Represent and  Mgnt,1007,Streetscene & Leisure Contracts,Grounds Maintenance Contractor,20043,Grounds Maintenance Costs,5013,"Cutting, bailing and removal of bales from Lower Burgh Meadows, in line with instruction from Council staff in September 15",25/11/2015,106980,"1,600.00",Revenue,T & L Kirkham,17058
Chorley Borough Council,http://statistics.data.gov.uk/id/local-authority/30UE,Unapportionable Central OHeads,1009,Shared Service Arrangement,Pensions Increase Act Payments,18005,Indirect Employee Expenses,5002,Pensions cost second half,30/11/2015,107953,"2,636.54",Revenue,Tameside MBC-Gmpf,17034
Chorley Borough Council,http://statistics.data.gov.uk/id/local-authority/30UE,Capital,Capital,Streetscene & Leisure Contracts,Main Contractor,3007,Capital Expenditure,Capital,Full repair of known defects to All Seasons Swimming Pool as described in quotation of 3 June 2015.,06/11/2015,107250,"59,500.00",Capital,Thames Pools,70957
Chorley Borough Council,http://statistics.data.gov.uk/id/local-authority/30UE,Unapportionable Central OHeads,1009,Policy & Performance,Exhibitions & Special Events,40158,Miscellaneous Expenses,5034,Hire of PA systems for Chorley Live event,25/11/2015,107865,"2,700.00",Revenue,The Creative Network,61874
Chorley Borough Council,http://statistics.data.gov.uk/id/local-authority/30UE,Unapportionable Central OHeads,1009,Governance,Practising Certificates,40202,Miscellaneous Expenses,5034,PC Fees 2015/2016 ,11/11/2015,107483,"1,408.00",Revenue,The Law Society,57091
Chorley Borough Council,http://statistics.data.gov.uk/id/local-authority/30UE,Unapportionable Central OHeads,1009,Policy & Performance,Publicity - Advertising,40157,Miscellaneous Expenses,5034,Advert promoting Chorley in theroombook,11/11/2015,107427,800.00,Revenue,The Roombook Ltd,67970
Chorley Borough Council,http://statistics.data.gov.uk/id/local-authority/30UE,Development Control,1091,Planning,Publications,40054,"Printing, Stationery & General",5026,"Encyclopedia of Planning Law & Practice 9 Volumes - Annual subscription 4 releases REF: 4100628733",25/11/2015,107873,"1,530.00",Revenue,Thomson Reuters RE;Sweet & Maxwell Limited,17932
Chorley Borough Council,http://statistics.data.gov.uk/id/local-authority/30UE,Business Support,1095,Economic Development,Miscellaneous Expenses,40200,Miscellaneous Expenses,5034,SIB,20/11/2015,107710,250.00,Revenue,NAME REDACTED,72792
Chorley Borough Council,http://statistics.data.gov.uk/id/local-authority/30UE,Parking Services,1066,Governance,External Contractors,50008,Private Contractors,5042,Outstanding debt registration costs,11/11/2015,107485,"1,000.00",Revenue,Traffic Enforcement Centre,22350
Chorley Borough Council,http://statistics.data.gov.uk/id/local-authority/30UE,Business Support,1095,Governance,External Contractor,40198,Miscellaneous Expenses,5034,"Re: Winter Maintenance Programme 2015/2016 Site: Market Walk Shopping CentreSpreading of de-icing salt",19/11/2015,107567,"2,752.50",Revenue,Trevelyan Hall Ltd t/a Litterboss,71709
Chorley Borough Council,http://statistics.data.gov.uk/id/local-authority/30UE,Service Management & Support,1009,Streetscene & Leisure Contracts,Petrol,30005,Direct Transport Costs,5016,Fuel,23/11/2015,107526,303.23,Revenue,Uk Fuels Ltd,57996
Chorley Borough Council,http://statistics.data.gov.uk/id/local-authority/30UE,Democratic Represent and  Mgnt,1007,Streetscene & Leisure Contracts,Use Of Transport - Mayoral Car,30015,Transport Recharges,5017,Mayoral,23/11/2015,107769,42.68,Revenue,Uk Fuels Ltd,57996
Chorley Borough Council,http://statistics.data.gov.uk/id/local-authority/30UE,Service Management & Support,1009,Streetscene & Leisure Contracts,Petrol,30005,Direct Transport Costs,5016,Streetscene,23/11/2015,107769,676.88,Revenue,Uk Fuels Ltd,57996
Chorley Borough Council,http://statistics.data.gov.uk/id/local-authority/30UE,Unapportionable Central OHeads,1009,HR & Org. Development,Miscellaneous Expenses,40200,Miscellaneous Expenses,5034,Level 1-5,11/11/2015,107101,"1,459.21",Revenue,UK Healthcare (BDHSC),17241
Chorley Borough Council,http://statistics.data.gov.uk/id/local-authority/30UE,Control Accounts,Control,HR & Org. Development,General Balances,100,Balance Sheet,Balance,Top ups,11/11/2015,107101,571.76,Revenue,UK Healthcare (BDHSC),17241
Chorley Borough Council,http://statistics.data.gov.uk/id/local-authority/30UE,Unapportionable Central OHeads,1009,HR & Org. Development,Miscellaneous Expenses,40200,Miscellaneous Expenses,5034,Level 1-5,30/11/2015,107925,"1,454.88",Revenue,UK Healthcare (BDHSC),17241
Chorley Borough Council,http://statistics.data.gov.uk/id/local-authority/30UE,Control Accounts,Control,HR & Org. Development,General Balances,100,Balance Sheet,Balance,Top Ups,30/11/2015,107925,569.61,Revenue,UK Healthcare (BDHSC),17241
Chorley Borough Council,http://statistics.data.gov.uk/id/local-authority/30UE,Unapportionable Central OHeads,1009,"Customer, ICT & Transactional",Postages,40082,Communication and Computing,5028,Imail Eco Business mono Letters - Hybrid,25/11/2015,107632,633.53,Revenue,UKMAIL Ltd (Mail),57758
Chorley Borough Council,http://statistics.data.gov.uk/id/local-authority/30UE,Unapportionable Central OHeads,1009,"Customer, ICT & Transactional",Postages,40082,Communication and Computing,5028,Imail Eco Business mono Letters - Hybrid,25/11/2015,107637,810.21,Revenue,UKMAIL Ltd (Mail),57758
Chorley Borough Council,http://statistics.data.gov.uk/id/local-authority/30UE,Unapportionable Central OHeads,1009,"Customer, ICT & Transactional",Postages,40082,Communication and Computing,5028,Imail Eco Business mono Letters - Hybrid,25/11/2015,107638,523.28,Revenue,UKMAIL Ltd (Mail),57758
Chorley Borough Council,http://statistics.data.gov.uk/id/local-authority/30UE,Control Accounts,Control,Shared Service Arrangement,General Balances,100,Balance Sheet,Balance,Salary ded Nov 15,20/11/2015,107598,"2,014.71",Revenue,Unify Credit Union Ltd,55509
Chorley Borough Council,http://statistics.data.gov.uk/id/local-authority/30UE,Democratic Represent and  Mgnt,1007,Governance,Water - Metered Supplies,20022,Water Services,5009,water,20/11/2015,106732,"15,660.49",Revenue,United Utilities Water Plc,17926
Chorley Borough Council,http://statistics.data.gov.uk/id/local-authority/30UE,Economic Development,1096,Governance,Water - Metered Supplies,20022,Water Services,5009,Market stall 1,19/11/2015,107357,443.06,Revenue,United Utilities Water Plc,17926
Chorley Borough Council,http://statistics.data.gov.uk/id/local-authority/30UE,Unapportionable Central OHeads,1009,Governance,Water - Metered Supplies,20022,Water Services,5009,Byron street,13/11/2015,107425,790.04,Revenue,United Utilities Water Plc,17926
Chorley Borough Council,http://statistics.data.gov.uk/id/local-authority/30UE,Unapportionable Central OHeads,1009,HR & Org. Development,HR Approved Training Expenses,17001,Indirect Employee Expenses,5002,Chorley Council Staff Mission Video,13/11/2015,107569,"1,436.00",Revenue,Untold Media,69267
Chorley Borough Council,http://statistics.data.gov.uk/id/local-authority/30UE,Corporate Management,1008,Streetscene & Leisure Contracts,Unitary Payment(S),50009,Private Contractors,5042,Sep-15,19/11/2015,107140,"275,439.19",Revenue,Veolia ES (UK) Ltd,20748
Chorley Borough Council,http://statistics.data.gov.uk/id/local-authority/30UE,Corporate Management,1008,"Customer, ICT & Transactional","Hackney Badges, Plates Etc.",40023,"Equipment, Furniture & Materia",5023,"012400 Flexiplate, Clear, Size 4F, Type A Adhesive",04/11/2015,107157,356.36,Revenue,VIP-SYSTEM LIMITED,69902
Chorley Borough Council,http://statistics.data.gov.uk/id/local-authority/30UE,Central Support Services,1009,"Customer, ICT & Transactional",Internet Charges,40104,Communication and Computing,5028,charges,25/11/2015,107815,"1,161.36",Revenue,Virgin Media Payments Ltd,17632
Chorley Borough Council,http://statistics.data.gov.uk/id/local-authority/30UE,Central Support Services,1009,"Customer, ICT & Transactional",Computer Equipment - Security,40106,Communication and Computing,5028,,13/11/2015,107345,"2,413.29",Revenue,Vodafone Ltd,60180
Chorley Borough Council,http://statistics.data.gov.uk/id/local-authority/30UE,Business Support,1095,Governance,Fixtures & Fittings - Purchase,20027,Fixtures and Fittings,5010,"To Supply: Bs10 3 Bay Bench 6No below ground baseplate fix with Iroko seat slats 316 s/s, cover plate set",11/11/2015,107206,"8,970.00",Revenue,Voss Street Furniture ltd,71426
Chorley Borough Council,http://statistics.data.gov.uk/id/local-authority/30UE,Business Support,1095,Governance,Fixtures & Fittings - Purchase,20027,Fixtures and Fittings,5010,"Lb10t Litter bin 6No. below ground baseplate fix with Iroko door & back 316 s/s, cover plate set Cigarette disposer",11/11/2015,107206,"8,910.00",Revenue,Voss Street Furniture ltd,71426
Chorley Borough Council,http://statistics.data.gov.uk/id/local-authority/30UE,Business Support,1095,Governance,Fixtures & Fittings - Purchase,20027,Fixtures and Fittings,5010,delivery,11/11/2015,107206,525.00,Revenue,Voss Street Furniture ltd,71426
Chorley Borough Council,http://statistics.data.gov.uk/id/local-authority/30UE,Central Support Services,1009,"Customer, ICT & Transactional",Computer Software-Maintenance,40107,Communication and Computing,5028,"Year 3 of 3 annual maintenance renewal effective 01/04/15 Year 3 maintenance due 01/04/15 at 800 to expire 31/03/16",23/11/2015,102398,800.00,Revenue,Waterford Technologies,18023
Chorley Borough Council,http://statistics.data.gov.uk/id/local-authority/30UE,Business Support,1095,Economic Development,Grants To Other Organisations,40127,Grants and Subscriptions,5031,Business rate subsidy,27/11/2015,107910,"1,277.25",Revenue,Wild Orchid,67522
Chorley Borough Council,http://statistics.data.gov.uk/id/local-authority/30UE,Corporate Management,1008,Streetscene & Leisure Contracts,Vehicle Maintenance,30045,Direct Transport Costs,5016,Carryout pre MOT inspection and repairs on NU08KOJ take for annual test and service as requested,06/11/2015,107258,361.23,Revenue,Wrekamendid Services Ltd,21188
Chorley Borough Council,http://statistics.data.gov.uk/id/local-authority/30UE,Corporate Management,1008,Streetscene & Leisure Contracts,Vehicle Maintenance,30045,Direct Transport Costs,5016,MOT,06/11/2015,107258,30.00,Revenue,Wrekamendid Services Ltd,21188
Chorley Borough Council,http://statistics.data.gov.uk/id/local-authority/30UE,Unapportionable Central OHeads,1009,"Customer, ICT & Transactional",Photocopier Charges,40047,"Printing, Stationery & General",5026,printing charges,25/11/2015,107810,360.33,Revenue,Xeretec Document Solutions,20052
